Workbook

Sheet バラつき最小組み合わせ
A1: Ver.1.03
F2: 個体番号 | G2: #1 | H2: #2 | I2: #3 | J2: #4 | K2: #5 | L2: #6 | M2: #7 | N2: #8 | O2: #9 | P2: #10 | Q2: #11 | R2: #12 | S2: #13 | T2: #14 | U2: #15 | V2: #16
B3: 通電期間A | C3: 5000 | D3: [us] | F3: 噴射量A [g] | G3: 61 | H3: 60.56 | I3: 60.8 | J3: 60.96 | K3: 61.6 | L3: 61.04 | M3: 60.96 | N3: 61.6 | O3: 61.76 | P3: 60.72 | Q3: 61.36 | R3: 61.28 | S3: 61.04 | T3: 61.52 | U3: 61.6 | V3: 60.1
B4: 通電期間B | C4: 10000 | D4: [us] | F4: 噴射量B [g] | G4: 138.4 | H4: 137.84 | I4: 137.7 | J4: 136.32 | K4: 136.64 | L4: 137.84 | M4: 137.2 | N4: 139.2 | O4: 136.72 | P4: 137.6 | Q4: 137.36 | R4: 138.4 | S4: 139.36 | T4: 138.64 | U4: 137.84 | V4: 130.3
B5: 噴射回数 | C5: 5000 | D5: [-] | F5: 無効噴射期間 [us] | G5: =IF(OR(ISERROR(INT($C$3+($C$4-$C$3)*(0-G3)/(G4-G3))),G2=""),"",INT($C$3+($C$4-$C$3)*(0-G3)/(G4-G3))) -> 1059 | H5: =IF(OR(ISERROR(INT($C$3+($C$4-$C$3)*(0-H3)/(H4-H3))),H2=""),"",INT($C$3+($C$4-$C$3)*(0-H3)/(H4-H3))) -> 1081 | I5: 1046 | J5: 955 | K5: 895 | L5: 1026 | M5: 1002 | N5: 1030 | O5: 880 | P5: =IF(OR(ISERROR(INT($C$3+($C$4-$C$3)*(0-P3)/(P4-P3))),P2=""),"",INT($C$3+($C$4-$C$3)*(0-P3)/(P4-P3))) -> 1050 | Q5: 963 | R5: 1026 | S5: 1103 | T5: 1011 | U5: 960 | V5: 719
B6: 燃料密度 | C6: 0.783 | D6: [g/cc] | F6: 基準噴射期間 [us] | G6: =IF(OR(ISERROR(INT($C$3+($C$4-$C$3)*(AVERAGE($G$3:$Z$4)-G3)/(G4-G3))),G2=""),"",INT($C$3+($C$4-$C$3)*(AVERAGE($G$3:$Z$4)-G3)/(G4-G3))) -> 7469 | H6: =IF(OR(ISERROR(INT($C$3+($C$4-$C$3)*(AVERAGE($G$3:$Z$4)-H3)/(H4-H3))),H2=""),"",INT($C$3+($C$4-$C$3)*(AVERAGE($G$3:$Z$4)-H3)/(H4-H3))) -> 7501 | I6: 7498 | J6: 7538 | K6: 7507 | L6: 7486 | M6: 7509 | N6: 7424 | O6: 7499 | P6: =IF(OR(ISERROR(INT($C$3+($C$4-$C$3)*(AVERAGE($G$3:$Z$4)-P3)/(P4-P3))),P2=""),"",INT($C$3+($C$4-$C$3)*(AVERAGE($G$3:$Z$4)-P3)/(P4-P3))) -> 7504 | Q6: 7491 | R6: 7460 | S6: 7437 | T6: 7444 | U6: 7467 | V6: 7786
F7: オープンフロー流量[cc/min] | G7: =IF(G6<>"",ROUND((60000000*((G4/$C$5))/($C$4-G5))/$C$6,1),"") -> 237.2 | H7: =IF(H6<>"",ROUND((60000000*((H4/$C$5))/($C$4-H5))/$C$6,1),"") -> 236.9 | I7: 235.7 | J7: 231 | K7: 230 | L7: 235.4 | M7: 233.7 | N7: 237.8 | O7: 229.8 | P7: =IF(P6<>"",ROUND((60000000*((P4/$C$5))/($C$4-P5))/$C$6,1),"") -> 235.6 | Q7: 232.9 | R7: 236.4 | S7: 240.1 | T7: 236.4 | U7: 233.7 | V7: 215.2
A9: 使い方 | F9: 組み合わせ本数 | G9: 3 | H9: [本]
A10: ・白もしくは黄緑色のセルのみ入力可能です。
F11: ラベル | G11: 1 | H11: =IF(H2="","",G11+1) -> 2 | I11: =IF(I2="","",H11+1) -> 3 | J11: 4 | K11: 5 | L11: 6 | M11: 7 | N11: 8 | O11: 9 | P11: =IF(P2="","",O11+1) -> 10 | Q11: 11 | R11: 12 | S11: 13 | T11: 14 | U11: 15 | V11: 16
A12: ・通電期間A,Bを決め、入力する。 | F12: 標本数 | G12: =MAX(G11:Z11) -> 16
A13: ・噴射回数を決め、入力する。 | F13: 組み合わせ数 | G13: =COMBIN(G12,G9) -> 560
A14: ・燃料密度を決め、入力する。 | F14: 標準化A | G14: =IF(G2="","",(G3-AVERAGE($G3:$Z3))/STDEV($G3:$Z3)) -> -0.2638335222 | H14: =IF(H2="","",(H3-AVERAGE($G3:$Z3))/STDEV($G3:$Z3)) -> -1.241406152 | I14: -0.7081847176 | J14: -0.3527037613 | K14: 1.069220064 | L14: -0.1749632832 | M14: -0.3527037613 | N14: 1.069220064 | O14: 1.42470102 | P14: -0.8859251957 | Q14: 0.5359986294 | R14: 0.3582581512 | S14: -0.1749632832 | T14: 0.8914795856 | U14: 1.069220064 | V14: -2.263413901
A15: ・上記条件で噴射燃料を捕集する。 | F15: 標準化B | G15: =IF(G2="","",(G4-AVERAGE($G4:$Z4))/STDEV($G4:$Z4)) -> 0.5159118405 | H15: =IF(H2="","",(H4-AVERAGE($G4:$Z4))/STDEV($G4:$Z4)) -> 0.244634253 | I15: 0.1768148561 | J15: -0.4916906273 | K15: -0.336674863 | L15: 0.244634253 | M15: -0.06539727555 | N15: 0.9034512511 | O15: -0.297920922 | P15: 0.1283724298 | Q15: 0.01211060658 | R15: 0.5159118405 | S15: 0.9809591333 | T15: 0.6321736637 | U15: 0.244634253 | V15: -3.407924693
A16: ・個体番号および各条件での | F16: 標準化C | G16: =IF(G2="","",(G7-AVERAGE($G7:$Z7))/STDEV($G7:$Z7)) -> 0.6313663415 | H16: =IF(H2="","",(H7-AVERAGE($G7:$Z7))/STDEV($G7:$Z7)) -> 0.5785691561 | I16: 0.3673804147 | J16: -0.4597754891 | K16: -0.6357661069 | L16: =IF(L2="","",(L7-AVERAGE($G7:$Z7))/STDEV($G7:$Z7)) -> 0.3145832294 | M16: 0.01539917906 | N16: 0.7369607122 | O16: -0.6709642305 | P16: 0.349781353 | Q16: -0.1253933152 | R16: 0.4905738472 | S16: 1.141739133 | T16: 0.4905738472 | U16: 0.01539917906 | V16: -3.240427251
A17: 噴射量（重量）を入力する。 | F17: 最小拡大バラつき | G17: =MIN(M33:M38792) -> 2.245857132
A18: ・測定した個体すべてのデータを | F18: 最小バラつきINDEX | G18: =INDEX(F33:M38792,MATCH(G17,M33:M38792,0),1) -> 223
A19: 入力する。 | F19: 最小バラつき組み合わせ | G19: =IF(VLOOKUP($G$18,$F$33:$L$38792,2,FALSE)="","",LOOKUP(VLOOKUP($G$18,$F$33:$L$38792,2,FALSE),$G$11:$Z$11,$G$2:$Z$2)) ->  | H19: =IF(VLOOKUP($G$18,$F$33:$L$38792,3,FALSE)="","",LOOKUP(VLOOKUP($G$18,$F$33:$L$38792,3,FALSE),$G$11:$Z$11,$G$2:$Z$2)) ->  | I19: =IF(VLOOKUP($G$18,$F$33:$L$38792,4,FALSE)="","",LOOKUP(VLOOKUP($G$18,$F$33:$L$38792,4,FALSE),$G$11:$Z$11,$G$2:$Z$2)) ->  | J19: =IF(VLOOKUP($G$18,$F$33:$L$38792,5,FALSE)="","",LOOKUP(VLOOKUP($G$18,$F$33:$L$38792,5,FALSE),$G$11:$Z$11,$G$2:$Z$2)) -> #3 | K19: =IF(VLOOKUP($G$18,$F$33:$L$38792,6,FALSE)="","",LOOKUP(VLOOKUP($G$18,$F$33:$L$38792,6,FALSE),$G$11:$Z$11,$G$2:$Z$2)) -> #6 | L19: =IF(VLOOKUP($G$18,$F$33:$L$38792,7,FALSE)="","",LOOKUP(VLOOKUP($G$18,$F$33:$L$38792,7,FALSE),$G$11:$Z$11,$G$2:$Z$2)) -> #10 | O19: =G19 ->  | P19: =H19 ->  | R19: #3 | S19: #6 | T19: #10
A20: ・組み合わせ本数を選択する。 | F20: 噴射量A [g] | G20: =IF(G$19="","",INDEX($G3:$Z3,1,MATCH(G$19,$G$2:$Z$2,0))) ->  | H20: =IF(H$19="","",INDEX($G3:$Z3,1,MATCH(H$19,$G$2:$Z$2,0))) ->  | J20: 60.8 | K20: 61.04 | L20: 60.72 | O20: =ROUND(100*G20/AVERAGE($G21:$L21),1) ->  | P20: =ROUND(100*H20/AVERAGE($G21:$L21),1) ->  | R20: 44.1 | S20: 44.3 | T20: 44.1
A21: ・F9を押してシート再計算する。 | F21: 噴射量B [g] | G21: =IF(G$19="","",INDEX($G4:$Z4,1,MATCH(G$19,$G$2:$Z$2,0))) ->  | H21: =IF(H$19="","",INDEX($G4:$Z4,1,MATCH(H$19,$G$2:$Z$2,0))) ->  | J21: 137.7 | K21: 137.84 | L21: 137.6 | O21: =ROUND(100*G21/AVERAGE($G21:$L21),1) ->  | P21: =ROUND(100*H21/AVERAGE($G21:$L21),1) ->  | R21: 100 | S21: 100.1 | T21: 99.9
A22: ・表示された組み合わせが、入力 | F22: 無効噴射期間 [us] | G22: =IF(G$19="","",INDEX($G5:$Z5,1,MATCH(G$19,$G$2:$Z$2,0))) ->  | J22: 1046 | K22: 1026 | L22: 1050
A23: されたデータを元に抽出された | F23: オープンフロー流量[cc/min] | G23: =IF(G$19="","",INDEX($G7:$Z7,1,MATCH(G$19,$G$2:$Z$2,0))) ->  | H23: =IF(H$19="","",INDEX($G7:$Z7,1,MATCH(H$19,$G$2:$Z$2,0))) ->  | J23: 235.7 | K23: 235.4 | L23: 235.6 | O23: =G23 ->  | P23: =H23 ->  | R23: 235.7 | S23: 235.4 | T23: 235.6
A24: 最小バラつきの組み合わせです。 | F24: 流量バラつき[cc/min] | G24: =CONCATENATE(ROUND(AVERAGE(G23:L23),1),"±",ROUND(3*STDEV(G23:L23),1)) -> 235.6±0.5
F25: 流量バラつき[%] | G25: =ROUND(100*(3*STDEV(G23:L23)/AVERAGE(G23:L23)),1) -> 0.2
A26: ・測定誤差を抑えるために、噴射燃料 | F26: 無効噴射期間バラつき [us] | G26: =CONCATENATE(ROUND(AVERAGE(G22:L22),0),"±",ROUND(3*STDEV(G22:L22),0)) -> 1041±39
A27: の捕集量は、噴射回数を増やすなど
A28: してなるべく多く（目安は50g以上）
A29: となるようにして下さい。
A31: How to use
F32: INDEX | G32: 5 | H32: 4 | I32: 3 | J32: 2 | K32: 1 | M32: Dev | T32: stdev | AA32: stdev | AH32: stdev
F33: 1 | G33: =IF(H33="","",IF(H33-1>0,H33-1,"")) ->  | I33: =IF(J33="","",IF(J33-1>0,J33-1,"")) ->  | J33: 1 | K33: =IF(L33="","",IF(L33-1>0,L33-1,"")) -> 2 | L33: =$G$9 -> 3 | M33: =IF(ISERROR(T33+AA33),"",T33+AA33+AH33) -> 4.006397316 | N33: =IF(G33="","",LOOKUP(G33,$G$11:$Z$11,$G$14:$Z$14)) ->  | O33: =IF(H33="","",LOOKUP(H33,$G$11:$Z$11,$G$14:$Z$14)) ->  | Q33: -0.2638335222 | R33: -1.241406152 | S33: -0.7081847176 | T33: =IF(ISERROR(STDEV(N33:S33)),"",(MAX(N33:S33)-MIN(N33:S33))+3*STDEV(N33:S33)) -> 2.445949963 | U33: =IF(G33="","",LOOKUP(G33,$G$11:$Z$11,$G$15:$Z$15)) ->  | V33: =IF(H33="","",LOOKUP(H33,$G$11:$Z$11,$G$15:$Z$15)) ->  | X33: 0.5159118405 | Y33: 0.244634253 | Z33: 0.1768148561 | AA33: =IF(ISERROR(STDEV(U33:Z33)),"",(MAX(U33:Z33)-MIN(U33:Z33))+3*STDEV(U33:Z33)) -> 0.8773967589 | AB33: =IF(G33="","",LOOKUP(G33,$G$11:$Z$11,$G$16:$Z$16)) ->  | AC33: =IF(H33="","",LOOKUP(H33,$G$11:$Z$11,$G$16:$Z$16)) ->  | AE33: 0.6313663415 | AF33: 0.5785691561 | AG33: 0.3673804147 | AH33: =IF(ISERROR(STDEV(AB33:AG33)),"",(MAX(AB33:AG33)-MIN(AB33:AG33))+3*STDEV(AB33:AG33)) -> 0.6830505938
F34: =IF(F33="","",IF(F33+1<=$G$13,F33+1,"")) -> 2 | G34: =IF($F34="","",IF(H33=$G$12-G$32+1,IF(G33+1>$G$12-G$32,F34+1,G33+1),G33)) ->  | H34: =IF($F34="","",IF(I33=$G$12-H$32+1,IF(H33+1>$G$12-H$32,G34+1,H33+1),H33)) ->  | I34: =IF($F34="","",IF(J33=$G$12-I$32+1,IF(I33+1>$G$12-I$32,H34+1,I33+1),I33)) ->  | J34: =IF($F34="","",IF(K33=$G$12-J$32+1,IF(J33+1>$G$12-J$32,I34+1,J33+1),J33)) -> 1 | K34: =IF($F34="","",IF(L33=$G$12-K$32+1,IF(K33+1>$G$12-K$32,J34+1,K33+1),K33)) -> 2 | L34: =IF($F34="","",IF(K33<>K34,K34+1,IF(L33+1>$G$12,K34+1,L33+1))) -> 4 | M34: =IF(ISERROR(T34+AA34),"",T34+AA34+AH34) -> 8.108078539 | N34: =IF(G34="","",LOOKUP(G34,$G$11:$Z$11,$G$14:$Z$14)) ->  | O34: =IF(H34="","",LOOKUP(H34,$G$11:$Z$11,$G$14:$Z$14)) ->  | P34: =IF(I34="","",LOOKUP(I34,$G$11:$Z$11,$G$14:$Z$14)) ->  | Q34: =IF(J34="","",LOOKUP(J34,$G$11:$Z$11,$G$14:$Z$14)) -> -0.2638335222 | R34: =IF(K34="","",LOOKUP(K34,$G$11:$Z$11,$G$14:$Z$14)) -> -1.241406152 | S34: =IF(L34="","",LOOKUP(L34,$G$11:$Z$11,$G$14:$Z$14)) -> -0.3527037613 | T34: =IF(ISERROR(STDEV(N34:S34)),"",(MAX(N34:S34)-MIN(N34:S34))+3*STDEV(N34:S34)) -> 2.599302311 | U34: =IF(G34="","",LOOKUP(G34,$G$11:$Z$11,$G$15:$Z$15)) ->  | V34: =IF(H34="","",LOOKUP(H34,$G$11:$Z$11,$G$15:$Z$15)) ->  | W34: =IF(I34="","",LOOKUP(I34,$G$11:$Z$11,$G$15:$Z$15)) ->  | X34: =IF(J34="","",LOOKUP(J34,$G$11:$Z$11,$G$15:$Z$15)) -> 0.5159118405 | Y34: =IF(K34="","",LOOKUP(K34,$G$11:$Z$11,$G$15:$Z$15)) -> 0.244634253 | Z34: =IF(L34="","",LOOKUP(L34,$G$11:$Z$11,$G$15:$Z$15)) -> -0.4916906273 | AA34: =IF(ISERROR(STDEV(U34:Z34)),"",(MAX(U34:Z34)-MIN(U34:Z34))+3*STDEV(U34:Z34)) -> 2.571745328 | AB34: =IF(G34="","",LOOKUP(G34,$G$11:$Z$11,$G$16:$Z$16)) ->  | AC34: =IF(H34="","",LOOKUP(H34,$G$11:$Z$11,$G$16:$Z$16)) ->  | AD34: =IF(I34="","",LOOKUP(I34,$G$11:$Z$11,$G$16:$Z$16)) ->  | AE34: =IF(J34="","",LOOKUP(J34,$G$11:$Z$11,$G$16:$Z$16)) -> 0.6313663415 | AF34: =IF(K34="","",LOOKUP(K34,$G$11:$Z$11,$G$16:$Z$16)) -> 0.5785691561 | AG34: =IF(L34="","",LOOKUP(L34,$G$11:$Z$11,$G$16:$Z$16)) -> -0.4597754891 | AH34: =IF(ISERROR(STDEV(AB34:AG34)),"",(MAX(AB34:AG34)-MIN(AB34:AG34))+3*STDEV(AB34:AG34)) -> 2.937030901
F35: 3 | J35: 1 | K35: 2 | L35: =IF($F35="","",IF(K34<>K35,K35+1,IF(L34+1>$G$12,K35+1,L34+1))) -> 5 | M35: 11.36716385 | Q35: -0.2638335222 | R35: -1.241406152 | S35: 1.069220064 | T35: 5.790211023 | X35: 0.5159118405 | Y35: 0.244634253 | Z35: -0.336674863 | AA35: 2.15934753 | AE35: 0.6313663415 | AF35: 0.5785691561 | AG35: -0.6357661069 | AH35: 3.417605297
F36: 4 | J36: 1 | K36: 2 | L36: 6 | M36: 4.408709385 | Q36: -0.2638335222 | R36: -1.241406152 | S36: -0.1749632832 | T36: 2.841624504 | X36: 0.5159118405 | Y36: 0.244634253 | Z36: 0.244634253 | AA36: 0.7411441519 | AE36: 0.6313663415 | AF36: 0.5785691561 | AG36: 0.3145832294 | AH36: 0.8259407288
F37: 5 | J37: 1 | K37: 2 | L37: 7 | M37: 5.693417031 | Q37: -0.2638335222 | R37: -1.241406152 | S37: -0.3527037613 | T37: 2.599302311 | X37: 0.5159118405 | Y37: 0.244634253 | Z37: -0.06539727555 | AA37: 1.45391845 | AE37: 0.6313663415 | AF37: 0.5785691561 | AG37: 0.01539917906 | AH37: 1.640196271
F38: 6 | J38: 1 | K38: 2 | L38: 8 | M38: 7.842708128 | Q38: -0.2638335222 | R38: -1.241406152 | S38: 1.069220064 | T38: 5.790211023 | X38: 0.5159118405 | Y38: 0.244634253 | Z38: 0.9034512511 | AA38: 1.652158451 | AE38: 0.6313663415 | AF38: 0.5785691561 | AG38: 0.7369607122 | AH38: 0.4003386544
F39: 7 | J39: 1 | K39: 2 | L39: 9 | M39: 12.28309878 | Q39: -0.2638335222 | R39: -1.241406152 | S39: 1.42470102 | T39: 6.712387797 | X39: 0.5159118405 | Y39: 0.244634253 | Z39: -0.297920922 | AA39: 2.056982841 | AE39: 0.6313663415 | AF39: 0.5785691561 | AG39: -0.6709642305 | AH39: 3.513728143
F40: 8 | J40: 1 | K40: 2 | L40: 10 | M40: 4.176766829 | Q40: -0.2638335222 | R40: -1.241406152 | S40: -0.8859251957 | T40: 2.46199828 | X40: 0.5159118405 | Y40: 0.244634253 | Z40: 0.1283724298 | AA40: 0.98414875 | AE40: 0.6313663415 | AF40: 0.5785691561 | AG40: 0.349781353 | AH40: 0.7306197992
F41: 9 | J41: 1 | K41: 2 | L41: 11 | M41: 7.732458453 | Q41: -0.2638335222 | R41: -1.241406152 | S41: 0.5359986294 | T41: 4.447951769 | X41: 0.5159118405 | Y41: 0.244634253 | Z41: 0.01211060658 | AA41: 1.260247986 | AE41: 0.6313663415 | AF41: 0.5785691561 | AG41: -0.1253933152 | AH41: 2.024258699
F42: 10 | J42: 1 | K42: 2 | L42: 12 | M42: 5.114143021 | Q42: -0.2638335222 | R42: -1.241406152 | S42: 0.3582581512 | T42: 4.018829091 | X42: 0.5159118405 | Y42: 0.244634253 | Z42: 0.5159118405 | AA42: 0.7411441519 | AE42: 0.6313663415 | AF42: 0.5785691561 | AG42: 0.4905738472 | AH42: 0.3541697785
F43: 11 | J43: 1 | K43: 2 | L43: 13 | M43: 6.19136423 | Q43: -0.2638335222 | R43: -1.241406152 | S43: -0.1749632832 | T43: 2.841624504 | X43: 0.5159118405 | Y43: 0.244634253 | Z43: 0.9809591333 | AA43: 1.853487476 | AE43: 0.6313663415 | AF43: 0.5785691561 | AG43: 1.141739133 | AH43: 1.49625225
F44: 12 | J44: 1 | K44: 2 | L44: 14 | M44: 6.674233659 | Q44: -0.2638335222 | R44: -1.241406152 | S44: 0.8914795856 | T44: 5.33591513 | X44: 0.5159118405 | Y44: 0.244634253 | Z44: 0.6321736637 | AA44: 0.98414875 | AE44: 0.6313663415 | AF44: 0.5785691561 | AG44: 0.4905738472 | AH44: 0.3541697785
F45: 13 | J45: 1 | K45: 2 | L45: 15 | M45: 8.171551445 | Q45: -0.2638335222 | R45: -1.241406152 | S45: 1.069220064 | T45: 5.790211023 | X45: 0.5159118405 | Y45: 0.244634253 | Z45: 0.244634253 | AA45: 0.7411441519 | AE45: 0.6313663415 | AF45: 0.5785691561 | AG45: 0.01539917906 | AH45: 1.640196271
F46: 14 | J46: 1 | K46: 2 | L46: 16 | M46: 26.02967501 | Q46: -0.2638335222 | R46: -1.241406152 | S46: -2.263413901 | T46: 4.999197799 | X46: 0.5159118405 | Y46: 0.244634253 | Z46: -3.407924693 | AA46: 10.49779328 | AE46: 0.6313663415 | AF46: 0.5785691561 | AG46: -3.240427251 | AH46: 10.53268393
F47: 15 | J47: 1 | K47: 3 | L47: 4 | M47: 6.494406622 | Q47: -0.2638335222 | R47: -0.7081847176 | S47: -0.3527037613 | T47: 1.14973685 | X47: 0.5159118405 | Y47: 0.1768148561 | Z47: -0.4916906273 | AA47: 2.545693368 | AE47: 0.6313663415 | AF47: 0.3673804147 | AG47: -0.4597754891 | AH47: 2.798976404
F48: 16 | J48: 1 | K48: 3 | L48: 5 | M48: 9.96546147 | Q48: -0.2638335222 | R48: -0.7081847176 | S48: 1.069220064 | T48: 4.552377107 | X48: 0.5159118405 | Y48: 0.1768148561 | Z48: -0.336674863 | AA48: 2.140353691 | AE48: 0.6313663415 | AF48: 0.3673804147 | AG48: -0.6357661069 | AH48: 3.272730672
F49: 17 | J49: 1 | K49: 3 | L49: 6 | M49: 3.093592471 | Q49: -0.2638335222 | R49: -0.7081847176 | S49: -0.1749632832 | T49: 1.390254983 | X49: 0.5159118405 | Y49: 0.1768148561 | Z49: 0.244634253 | AA49: 0.8773967589 | AE49: 0.6313663415 | AF49: 0.3673804147 | AG49: 0.3145832294 | AH49: 0.8259407288
F50: 18 | J50: 1 | K50: 3 | L50: 7 | M50: 4.150092476 | Q50: -0.2638335222 | R50: -0.7081847176 | S50: -0.3527037613 | T50: 1.14973685 | X50: 0.5159118405 | Y50: 0.1768148561 | Z50: -0.06539727555 | AA50: 1.457300357 | AE50: 0.6313663415 | AF50: 0.3673804147 | AG50: 0.01539917906 | AH50: 1.543055269
F51: 19 | J51: 1 | K51: 3 | L51: 8 | M51: 7.310444344 | Q51: -0.2638335222 | R51: -0.7081847176 | S51: 1.069220064 | T51: 4.552377107 | X51: 0.5159118405 | Y51: 0.1768148561 | Z51: 0.9034512511 | AA51: 1.817398063 | AE51: 0.6313663415 | AF51: 0.3673804147 | AG51: 0.7369607122 | AH51: 0.9406691744
F52: 20 | J52: 1 | K52: 3 | L52: 9 | M52: 10.91673453 | Q52: -0.2638335222 | R52: -0.7081847176 | S52: 1.42470102 | T52: 5.508785274 | X52: 0.5159118405 | Y52: 0.1768148561 | Z52: -0.297920922 | AA52: 2.0402205 | AE52: 0.6313663415 | AF52: 0.3673804147 | AG52: -0.6709642305 | AH52: 3.367728751
F53: 21 | J53: 1 | K53: 3 | L53: 10 | M53: 3.359176784 | Q53: -0.2638335222 | R53: -0.7081847176 | S53: -0.8859251957 | T53: 1.583370285 | X53: 0.5159118405 | Y53: 0.1768148561 | Z53: 0.1283724298 | AA53: 1.021006334 | AE53: 0.6313663415 | AF53: 0.3673804147 | AG53: 0.349781353 | AH53: 0.7548001652
F54: 22 | J54: 1 | K54: 3 | L54: 11 | M54: 6.319187953 | Q54: -0.2638335222 | R54: -0.7081847176 | S54: 0.5359986294 | T54: 3.135679444 | X54: 0.5159118405 | Y54: 0.1768148561 | Z54: 0.01211060658 | AA54: 1.274447006 | AE54: 0.6313663415 | AF54: 0.3673804147 | AG54: -0.1253933152 | AH54: 1.909061503
F55: 23 | J55: 1 | K55: 3 | L55: 12 | M55: 4.260184177 | Q55: -0.2638335222 | R55: -0.7081847176 | S55: 0.3582581512 | T55: 2.673495961 | X55: 0.5159118405 | Y55: 0.1768148561 | Z55: 0.5159118405 | AA55: 0.9264301899 | AE55: 0.6313663415 | AF55: 0.3673804147 | AG55: 0.4905738472 | AH55: 0.660258026
F56: 24 | J56: 1 | K56: 3 | L56: 13 | M56: 5.360870558 | Q56: -0.2638335222 | R56: -0.7081847176 | S56: -0.1749632832 | T56: 1.390254983 | X56: 0.5159118405 | Y56: 0.1768148561 | Z56: 0.9809591333 | AA56: 2.015282441 | AE56: 0.6313663415 | AF56: 0.3673804147 | AG56: 1.141739133 | AH56: 1.955333135
F57: 25 | J57: 1 | K57: 3 | L57: 14 | M57: 5.902290749 | Q57: -0.2638335222 | R57: -0.7081847176 | S57: 0.8914795856 | T57: 4.07689731 | X57: 0.5159118405 | Y57: 0.1768148561 | Z57: 0.6321736637 | AA57: 1.165135413 | AE57: 0.6313663415 | AF57: 0.3673804147 | AG57: 0.4905738472 | AH57: 0.660258026
F58: 26 | J58: 1 | K58: 3 | L58: 15 | M58: 6.972829135 | Q58: -0.2638335222 | R58: -0.7081847176 | S58: 1.069220064 | T58: 4.552377107 | X58: 0.5159118405 | Y58: 0.1768148561 | Z58: 0.244634253 | AA58: 0.8773967589 | AE58: 0.6313663415 | AF58: 0.3673804147 | AG58: 0.01539917906 | AH58: 1.543055269
F59: 27 | J59: 1 | K59: 3 | L59: 16 | M59: 25.95719082 | Q59: -0.2638335222 | R59: -0.7081847176 | S59: -2.263413901 | T59: 5.149463113 | X59: 0.5159118405 | Y59: 0.1768148561 | Z59: -3.407924693 | AA59: 10.44631737 | AE59: 0.6313663415 | AF59: 0.3673804147 | AG59: -3.240427251 | AH59: 10.36141034
F60: 28 | J60: 1 | K60: 4 | L60: 5 | M60: 9.773241693 | Q60: -0.2638335222 | R60: -0.3527037613 | S60: 1.069220064 | T60: 3.811525407 | X60: 0.5159118405 | Y60: -0.4916906273 | Z60: -0.336674863 | AA60: 2.635267993 | AE60: 0.6313663415 | AF60: -0.4597754891 | AG60: -0.6357661069 | AH60: 3.326448294
F61: 29 | J61: 1 | K61: 4 | L61: 6 | M61: 5.791239598 | Q61: -0.2638335222 | R61: -0.3527037613 | S61: -0.1749632832 | T61: 0.4443511953 | X61: 0.5159118405 | Y61: -0.4916906273 | Z61: 0.244634253 | AA61: 2.571745328 | AE61: 0.6313663415 | AF61: -0.4597754891 | AG61: 0.3145832294 | AH61: 2.775143074
F62: =IF(F61="","",IF(F61+1<=$G$13,F61+1,"")) -> 30 | G62: =IF($F62="","",IF(H61=$G$12-G$32+1,IF(G61+1>$G$12-G$32,F62+1,G61+1),G61)) ->  | J62: 1 | K62: 4 | L62: =IF($F62="","",IF(K61<>K62,K62+1,IF(L61+1>$G$12,K62+1,L61+1))) -> 7 | M62: 5.500144595 | Q62: -0.2638335222 | R62: -0.3527037613 | S62: -0.3527037613 | T62: 0.2427980084 | X62: 0.5159118405 | Y62: -0.4916906273 | Z62: -0.06539727555 | AA62: 2.524956601 | AE62: 0.6313663415 | AF62: -0.4597754891 | AG62: 0.01539917906 | AH62: 2.732389986
F63: 31 | G63: =IF($F63="","",IF(H62=$G$12-G$32+1,IF(G62+1>$G$12-G$32,F63+1,G62+1),G62)) ->  | J63: 1 | K63: 4 | L63: 8 | M63: 10.55159537 | Q63: -0.2638335222 | R63: -0.3527037613 | S63: 1.069220064 | T63: 3.811525407 | X63: 0.5159118405 | Y63: -0.4916906273 | Z63: 0.9034512511 | AA63: 3.55565237 | AE63: 0.6313663415 | AF63: -0.4597754891 | AG63: 0.7369607122 | AH63: 3.18441759
F64: 32 | G64: =IF($F64="","",IF(H63=$G$12-G$32+1,IF(G63+1>$G$12-G$32,F64+1,G63+1),G63)) ->  | J64: 1 | K64: 4 | L64: 9 | M64: 10.79272664 | Q64: -0.2638335222 | R64: -0.3527037613 | S64: 1.42470102 | T64: 4.781954975 | X64: 0.5159118405 | Y64: -0.4916906273 | Z64: -0.297920922 | AA64: 2.611566244 | AE64: 0.6313663415 | AF64: -0.4597754891 | AG64: -0.6709642305 | AH64: 3.399205424
F65: 33 | G65: =IF($F65="","",IF(H64=$G$12-G$32+1,IF(G64+1>$G$12-G$32,F65+1,G64+1),G64)) ->  | J65: 1 | K65: 4 | L65: 10 | M65: 6.954347943 | Q65: -0.2638335222 | R65: -0.3527037613 | S65: -0.8859251957 | T65: 1.631463558 | X65: 0.5159118405 | Y65: -0.4916906273 | Z65: 0.1283724298 | AA65: 2.532361985 | AE65: 0.6313663415 | AF65: -0.4597754891 | AG65: 0.349781353 | AH65: 2.7905224
F66: 34 | G66: =IF($F66="","",IF(H65=$G$12-G$32+1,IF(G65+1>$G$12-G$32,F66+1,G65+1),G65)) ->  | J66: 1 | K66: 4 | L66: 11 | M66: 7.644317664 | Q66: -0.2638335222 | R66: -0.3527037613 | S66: 0.5359986294 | T66: 2.357079724 | X66: 0.5159118405 | Y66: -0.4916906273 | Z66: 0.01211060658 | AA66: 2.519006169 | AE66: 0.6313663415 | AF66: -0.4597754891 | AG66: -0.1253933152 | AH66: 2.76823177
F67: 35 | G67: =IF($F67="","",IF(H66=$G$12-G$32+1,IF(G66+1>$G$12-G$32,F67+1,G66+1),G66)) ->  | J67: 1 | K67: 4 | L67: 12 | M67: 7.497606024 | Q67: -0.2638335222 | R67: -0.3527037613 | S67: 0.3582581512 | T67: 1.873091086 | X67: 0.5159118405 | Y67: -0.4916906273 | Z67: 0.5159118405 | AA67: 2.752821136 | AE67: 0.6313663415 | AF67: -0.4597754891 | AG67: 0.4905738472 | AH67: 2.871693802
F68: 36 | G68: =IF($F68="","",IF(H67=$G$12-G$32+1,IF(G67+1>$G$12-G$32,F68+1,G67+1),G67)) ->  | J68: 1 | K68: 4 | L68: 13 | M68: 8.231268975 | Q68: -0.2638335222 | R68: -0.3527037613 | S68: -0.1749632832 | T68: 0.4443511953 | X68: 0.5159118405 | Y68: -0.4916906273 | Z68: 0.9809591333 | AA68: 3.731043781 | AE68: 0.6313663415 | AF68: -0.4597754891 | AG68: 1.141739133 | AH68: 4.055873999
F69: 37 | G69: =IF($F69="","",IF(H68=$G$12-G$32+1,IF(G68+1>$G$12-G$32,F69+1,G68+1),G68)) ->  | J69: 1 | K69: 4 | L69: 14 | M69: 9.176161688 | Q69: -0.2638335222 | R69: -0.3527037613 | S69: 0.8914795856 | T69: 3.326479615 | X69: 0.5159118405 | Y69: -0.4916906273 | Z69: 0.6321736637 | AA69: 2.977988271 | AE69: 0.6313663415 | AF69: -0.4597754891 | AG69: 0.4905738472 | AH69: 2.871693802
F70: 38 | G70: =IF($F70="","",IF(H69=$G$12-G$32+1,IF(G69+1>$G$12-G$32,F70+1,G69+1),G69)) ->  | J70: 1 | K70: 4 | L70: 15 | M70: 9.115660721 | Q70: -0.2638335222 | R70: -0.3527037613 | S70: 1.069220064 | T70: 3.811525407 | X70: 0.5159118405 | Y70: -0.4916906273 | Z70: 0.244634253 | AA70: 2.571745328 | AE70: 0.6313663415 | AF70: -0.4597754891 | AG70: 0.01539917906 | AH70: 2.732389986
F71: 39 | G71: =IF($F71="","",IF(H70=$G$12-G$32+1,IF(G70+1>$G$12-G$32,F71+1,G70+1),G70)) ->  | J71: 1 | K71: 4 | L71: 16 | M71: 25.286859 | Q71: -0.2638335222 | R71: -0.3527037613 | S71: -2.263413901 | T71: 5.388614058 | X71: 0.5159118405 | Y71: -0.4916906273 | Z71: -3.407924693 | AA71: 10.03728609 | AE71: 0.6313663415 | AF71: -0.4597754891 | AG71: -3.240427251 | AH71: 9.860958852
F72: 40 | G72: =IF($F72="","",IF(H71=$G$12-G$32+1,IF(G71+1>$G$12-G$32,F72+1,G71+1),G71)) ->  | J72: 1 | K72: 5 | L72: 6 | M72: 8.973773468 | Q72: -0.2638335222 | R72: 1.069220064 | S72: -0.1749632832 | T72: 3.568983588 | X72: 0.5159118405 | Y72: -0.336674863 | Z72: 0.244634253 | AA72: 2.15934753 | AE72: 0.6313663415 | AF72: -0.6357661069 | AG72: 0.3145832294 | AH72: 3.245442349
F73: 41 | G73: =IF($F73="","",IF(H72=$G$12-G$32+1,IF(G72+1>$G$12-G$32,F73+1,G72+1),G72)) ->  | J73: 1 | K73: 5 | L73: 7 | M73: 9.138948474 | Q73: -0.2638335222 | R73: 1.069220064 | S73: -0.3527037613 | T73: 3.811525407 | X73: 0.5159118405 | Y73: -0.336674863 | Z73: -0.06539727555 | AA73: 2.15934753 | AE73: 0.6313663415 | AF73: -0.6357661069 | AG73: 0.01539917906 | AH73: 3.168075537
F74: 42 | G74: =IF($F74="","",IF(H73=$G$12-G$32+1,IF(G73+1>$G$12-G$32,F74+1,G73+1),G73)) ->  | J74: 1 | K74: 5 | L74: 8 | M74: 10.4497766 | Q74: -0.2638335222 | R74: 1.069220064 | S74: 1.069220064 | T74: 3.641970126 | X74: 0.5159118405 | Y74: -0.336674863 | Z74: 0.9034512511 | AA74: 3.143414188 | AE74: 0.6313663415 | AF74: -0.6357661069 | AG74: 0.7369607122 | AH74: 3.664392283
F75: 43 | G75: =IF($F75="","",IF(H74=$G$12-G$32+1,IF(G74+1>$G$12-G$32,F75+1,G74+1),G74)) ->  | J75: 1 | K75: 5 | L75: 9 | M75: 10.1841772 | Q75: -0.2638335222 | R75: 1.069220064 | S75: 1.42470102 | T75: 4.359081529 | X75: 0.5159118405 | Y75: -0.336674863 | Z75: -0.297920922 | AA75: 2.296918584 | AE75: 0.6313663415 | AF75: -0.6357661069 | AG75: -0.6709642305 | AH75: 3.528177086
F76: 44 | G76: =IF($F76="","",IF(H75=$G$12-G$32+1,IF(G75+1>$G$12-G$32,F76+1,G75+1),G75)) ->  | J76: 1 | K76: 5 | L76: 10 | M76: 10.34823676 | Q76: -0.2638335222 | R76: 1.069220064 | S76: -0.8859251957 | T76: 4.951799118 | X76: 0.5159118405 | Y76: -0.336674863 | Z76: 0.1283724298 | AA76: 2.13322709 | AE76: 0.6313663415 | AF76: -0.6357661069 | AG76: 0.349781353 | AH76: 3.263210557
F77: 45 | G77: =IF($F77="","",IF(H76=$G$12-G$32+1,IF(G76+1>$G$12-G$32,F77+1,G76+1),G76)) ->  | J77: 1 | K77: 5 | L77: 11 | M77: 8.664184744 | Q77: -0.2638335222 | R77: 1.069220064 | S77: 0.5359986294 | T77: 3.34592036 | X77: 0.5159118405 | Y77: -0.336674863 | Z77: 0.01211060658 | AA77: 2.138493625 | AE77: 0.6313663415 | AF77: -0.6357661069 | AG77: -0.1253933152 | AH77: 3.17977076
F78: 46 | G78: =IF($F78="","",IF(H77=$G$12-G$32+1,IF(G77+1>$G$12-G$32,F78+1,G77+1),G77)) ->  | J78: 1 | K78: 5 | L78: 12 | M78: 9.014095874 | Q78: -0.2638335222 | R78: 1.069220064 | S78: 0.3582581512 | T78: 3.334114587 | X78: 0.5159118405 | Y78: -0.336674863 | Z78: 0.5159118405 | AA78: 2.329310192 | AE78: 0.6313663415 | AF78: -0.6357661069 | AG78: 0.4905738472 | AH78: 3.350671095
F79: 47 | G79: =IF($F79="","",IF(H78=$G$12-G$32+1,IF(G78+1>$G$12-G$32,F79+1,G78+1),G78)) ->  | J79: 1 | K79: 5 | L79: 13 | M79: 11.41448971 | Q79: -0.2638335222 | R79: 1.069220064 | S79: -0.1749632832 | T79: 3.568983588 | X79: 0.5159118405 | Y79: -0.336674863 | Z79: 0.9809591333 | AA79: 3.322378027 | AE79: 0.6313663415 | AF79: -0.6357661069 | AG79: 1.141739133 | AH79: 4.523128095
F80: 48 | G80: =IF($F80="","",IF(H79=$G$12-G$32+1,IF(G79+1>$G$12-G$32,F80+1,G79+1),G79)) ->  | J80: 1 | K80: 5 | L80: 14 | M80: 9.411011631 | Q80: -0.2638335222 | R80: 1.069220064 | S80: 0.8914795856 | T80: 3.504471988 | X80: 0.5159118405 | Y80: -0.336674863 | Z80: 0.6321736637 | AA80: 2.555868548 | AE80: 0.6313663415 | AF80: -0.6357661069 | AG80: 0.4905738472 | AH80: 3.350671095
F81: 49 | G81: =IF($F81="","",IF(H80=$G$12-G$32+1,IF(G80+1>$G$12-G$32,F81+1,G80+1),G80)) ->  | J81: 1 | K81: 5 | L81: 15 | M81: 8.969393193 | Q81: -0.2638335222 | R81: 1.069220064 | S81: 1.069220064 | T81: 3.641970126 | X81: 0.5159118405 | Y81: -0.336674863 | Z81: 0.244634253 | AA81: 2.15934753 | AE81: 0.6313663415 | AF81: -0.6357661069 | AG81: 0.01539917906 | AH81: 3.168075537
F82: 50 | G82: =IF($F82="","",IF(H81=$G$12-G$32+1,IF(G81+1>$G$12-G$32,F82+1,G81+1),G81)) ->  | J82: 1 | K82: 5 | L82: 16 | M82: 28.27395119 | Q82: -0.2638335222 | R82: 1.069220064 | S82: -2.263413901 | T82: 8.364800899 | X82: 0.5159118405 | Y82: -0.336674863 | Z82: -3.407924693 | AA82: 10.11527894 | AE82: 0.6313663415 | AF82: -0.6357661069 | AG82: -3.240427251 | AH82: 9.793871345
F83: 51 | G83: =IF($F83="","",IF(H82=$G$12-G$32+1,IF(G82+1>$G$12-G$32,F83+1,G82+1),G82)) ->  | J83: 1 | K83: 6 | L83: 7 | M83: 3.43831325 | Q83: -0.2638335222 | R83: -0.1749632832 | S83: -0.3527037613 | T83: 0.4443511953 | X83: 0.5159118405 | Y83: 0.244634253 | Z83: -0.06539727555 | AA83: 1.45391845 | AE83: 0.6313663415 | AF83: 0.3145832294 | AG83: 0.01539917906 | AH83: 1.540043605
F84: 52 | G84: =IF($F84="","",IF(H83=$G$12-G$32+1,IF(G83+1>$G$12-G$32,F84+1,G83+1),G83)) ->  | J84: 1 | K84: 6 | L84: 8 | M84: 6.302956156 | Q84: -0.2638335222 | R84: -0.1749632832 | S84: 1.069220064 | T84: 3.568983588 | X84: 0.5159118405 | Y84: 0.244634253 | Z84: 0.9034512511 | AA84: 1.652158451 | AE84: 0.6313663415 | AF84: 0.3145832294 | AG84: 0.7369607122 | AH84: 1.081814116
F85: 53 | G85: =IF($F85="","",IF(H84=$G$12-G$32+1,IF(G84+1>$G$12-G$32,F85+1,G84+1),G84)) ->  | J85: 1 | K85: 6 | L85: 9 | M85: 9.93617287 | Q85: -0.2638335222 | R85: -0.1749632832 | S85: 1.42470102 | T85: 4.539316725 | X85: 0.5159118405 | Y85: 0.244634253 | Z85: -0.297920922 | AA85: 2.056982841 | AE85: 0.6313663415 | AF85: 0.3145832294 | AG85: -0.6709642305 | AH85: 3.339873303
F86: 54 | G86: =IF($F86="","",IF(H85=$G$12-G$32+1,IF(G85+1>$G$12-G$32,F86+1,G85+1),G85)) ->  | J86: 1 | K86: 6 | L86: 10 | M86: 3.69490761 | Q86: -0.2638335222 | R86: -0.1749632832 | S86: -0.8859251957 | T86: 1.873091086 | X86: 0.5159118405 | Y86: 0.244634253 | Z86: 0.1283724298 | AA86: 0.98414875 | AE86: 0.6313663415 | AF86: 0.3145832294 | AG86: 0.349781353 | AH86: 0.8376677737
F87: 55 | G87: =IF($F87="","",IF(H86=$G$12-G$32+1,IF(G86+1>$G$12-G$32,F87+1,G86+1),G86)) ->  | J87: 1 | K87: 6 | L87: 11 | M87: 5.272141379 | Q87: -0.2638335222 | R87: -0.1749632832 | S87: 0.5359986294 | T87: 2.114991589 | X87: 0.5159118405 | Y87: 0.244634253 | Z87: 0.01211060658 | AA87: 1.260247986 | AE87: 0.6313663415 | AF87: 0.3145832294 | AG87: -0.1253933152 | AH87: 1.896901804
F88: 56 | G88: =IF($F88="","",IF(H87=$G$12-G$32+1,IF(G87+1>$G$12-G$32,F88+1,G87+1),G87)) ->  | J88: 1 | K88: 6 | L88: 12 | M88: 3.165542212 | Q88: -0.2638335222 | R88: -0.1749632832 | S88: 0.3582581512 | T88: 1.631463558 | X88: 0.5159118405 | Y88: 0.244634253 | Z88: 0.5159118405 | AA88: 0.7411441519 | AE88: 0.6313663415 | AF88: 0.3145832294 | AG88: 0.4905738472 | AH88: 0.7929345021
F89: 57 | G89: =IF($F89="","",IF(H88=$G$12-G$32+1,IF(G88+1>$G$12-G$32,F89+1,G88+1),G88)) ->  | J89: 1 | K89: 6 | L89: 13 | M89: 4.175451062 | Q89: -0.2638335222 | R89: -0.1749632832 | S89: -0.1749632832 | T89: 0.2427980084 | X89: 0.5159118405 | Y89: 0.244634253 | Z89: 0.9809591333 | AA89: 1.853487476 | AE89: 0.6313663415 | AF89: 0.3145832294 | AG89: 1.141739133 | AH89: 2.079165578
F90: 58 | G90: =IF($F90="","",IF(H89=$G$12-G$32+1,IF(G89+1>$G$12-G$32,F90+1,G89+1),G89)) ->  | J90: 1 | K90: 6 | L90: 14 | M90: 4.861105782 | Q90: -0.2638335222 | R90: -0.1749632832 | S90: 0.8914795856 | T90: 3.08402253 | X90: 0.5159118405 | Y90: 0.244634253 | Z90: 0.6321736637 | AA90: 0.98414875 | AE90: 0.6313663415 | AF90: 0.3145832294 | AG90: 0.4905738472 | AH90: 0.7929345021
F91: 59 | G91: =IF($F91="","",IF(H90=$G$12-G$32+1,IF(G90+1>$G$12-G$32,F91+1,G90+1),G90)) ->  | J91: 1 | K91: 6 | L91: 15 | M91: 5.850171345 | Q91: -0.2638335222 | R91: -0.1749632832 | S91: 1.069220064 | T91: 3.568983588 | X91: 0.5159118405 | Y91: 0.244634253 | Z91: 0.244634253 | AA91: 0.7411441519 | AE91: 0.6313663415 | AF91: 0.3145832294 | AG91: 0.01539917906 | AH91: 1.540043605
F92: 60 | G92: =IF($F92="","",IF(H91=$G$12-G$32+1,IF(G91+1>$G$12-G$32,F92+1,G91+1),G91)) ->  | J92: 1 | K92: 6 | L92: 16 | M92: 26.4502148 | Q92: -0.2638335222 | R92: -0.1749632832 | S92: -2.263413901 | T92: 5.631298116 | X92: 0.5159118405 | Y92: 0.244634253 | Z92: -3.407924693 | AA92: 10.49779328 | AE92: 0.6313663415 | AF92: 0.3145832294 | AG92: -3.240427251 | AH92: 10.3211234
F93: 61 | G93: =IF($F93="","",IF(H92=$G$12-G$32+1,IF(G92+1>$G$12-G$32,F93+1,G92+1),G92)) ->  | J93: 1 | K93: 7 | L93: 8 | M93: 8.133977634 | Q93: -0.2638335222 | R93: -0.3527037613 | S93: 1.069220064 | T93: 3.811525407 | X93: 0.5159118405 | Y93: -0.06539727555 | Z93: 0.9034512511 | AA93: 2.431777721 | AE93: 0.6313663415 | AF93: 0.01539917906 | AG93: 0.7369607122 | AH93: 1.890674506
F94: 62 | G94: =IF($F94="","",IF(H93=$G$12-G$32+1,IF(G93+1>$G$12-G$32,F94+1,G93+1),G93)) ->  | J94: 1 | K94: 7 | L94: 9 | M94: 10.11012913 | Q94: -0.2638335222 | R94: -0.3527037613 | S94: 1.42470102 | T94: 4.781954975 | X94: 0.5159118405 | Y94: -0.06539727555 | Z94: -0.297920922 | AA94: 2.071396657 | AE94: 0.6313663415 | AF94: 0.01539917906 | AG94: -0.6709642305 | AH94: 3.256777499
F95: 63 | G95: =IF($F95="","",IF(H94=$G$12-G$32+1,IF(G94+1>$G$12-G$32,F95+1,G94+1),G94)) ->  | J95: 1 | K95: 7 | L95: 10 | M95: 4.641785599 | Q95: -0.2638335222 | R95: -0.3527037613 | S95: -0.8859251957 | T95: 1.631463558 | X95: 0.5159118405 | Y95: -0.06539727555 | Z95: 0.1283724298 | AA95: 1.469273458 | AE95: 0.6313663415 | AF95: 0.01539917906 | AG95: 0.349781353 | AH95: 1.541048583
F96: 64 | G96: =IF($F96="","",IF(H95=$G$12-G$32+1,IF(G95+1>$G$12-G$32,F96+1,G95+1),G95)) ->  | J96: 1 | K96: 7 | L96: 11 | M96: 5.849475185 | Q96: -0.2638335222 | R96: -0.3527037613 | S96: 0.5359986294 | T96: 2.357079724 | X96: 0.5159118405 | Y96: -0.06539727555 | Z96: 0.01211060658 | AA96: 1.528206769 | AE96: 0.6313663415 | AF96: 0.01539917906 | AG96: -0.1253933152 | AH96: 1.964188692
F97: 65 | G97: =IF($F97="","",IF(H96=$G$12-G$32+1,IF(G96+1>$G$12-G$32,F97+1,G96+1),G96)) ->  | J97: 1 | K97: 7 | L97: 12 | M97: 5.045492617 | Q97: -0.2638335222 | R97: -0.3527037613 | S97: 0.3582581512 | T97: 1.873091086 | X97: 0.5159118405 | Y97: -0.06539727555 | Z97: 0.5159118405 | AA97: 1.58816604 | AE97: 0.6313663415 | AF97: 0.01539917906 | AG97: 0.4905738472 | AH97: 1.584235491
F98: 66 | G98: =IF($F98="","",IF(H97=$G$12-G$32+1,IF(G97+1>$G$12-G$32,F98+1,G97+1),G97)) ->  | J98: 1 | K98: 7 | L98: 13 | M98: =IF(ISERROR(T98+AA98),"",T98+AA98+AH98) -> 5.88179134 | N98: =IF(G98="","",LOOKUP(G98,$G$11:$Z$11,$G$14:$Z$14)) ->  | O98: =IF(H98="","",LOOKUP(H98,$G$11:$Z$11,$G$14:$Z$14)) ->  | P98: =IF(I98="","",LOOKUP(I98,$G$11:$Z$11,$G$14:$Z$14)) ->  | Q98: =IF(J98="","",LOOKUP(J98,$G$11:$Z$11,$G$14:$Z$14)) -> -0.2638335222 | R98: =IF(K98="","",LOOKUP(K98,$G$11:$Z$11,$G$14:$Z$14)) -> -0.3527037613 | S98: =IF(L98="","",LOOKUP(L98,$G$11:$Z$11,$G$14:$Z$14)) -> -0.1749632832 | T98: =IF(ISERROR(STDEV(N98:S98)),"",(MAX(N98:S98)-MIN(N98:S98))+3*STDEV(N98:S98)) -> 0.4443511953 | U98: =IF(G98="","",LOOKUP(G98,$G$11:$Z$11,$G$15:$Z$15)) ->  | V98: =IF(H98="","",LOOKUP(H98,$G$11:$Z$11,$G$15:$Z$15)) ->  | W98: =IF(I98="","",LOOKUP(I98,$G$11:$Z$11,$G$15:$Z$15)) ->  | X98: =IF(J98="","",LOOKUP(J98,$G$11:$Z$11,$G$15:$Z$15)) -> 0.5159118405 | Y98: =IF(K98="","",LOOKUP(K98,$G$11:$Z$11,$G$15:$Z$15)) -> -0.06539727555 | Z98: =IF(L98="","",LOOKUP(L98,$G$11:$Z$11,$G$15:$Z$15)) -> 0.9809591333 | AA98: =IF(ISERROR(STDEV(U98:Z98)),"",(MAX(U98:Z98)-MIN(U98:Z98))+3*STDEV(U98:Z98)) -> 2.619117201 | AB98: =IF(G98="","",LOOKUP(G98,$G$11:$Z$11,$G$16:$Z$16)) ->  | AC98: =IF(H98="","",LOOKUP(H98,$G$11:$Z$11,$G$16:$Z$16)) ->  | AD98: =IF(I98="","",LOOKUP(I98,$G$11:$Z$11,$G$16:$Z$16)) ->  | AE98: =IF(J98="","",LOOKUP(J98,$G$11:$Z$11,$G$16:$Z$16)) -> 0.6313663415 | AF98: =IF(K98="","",LOOKUP(K98,$G$11:$Z$11,$G$16:$Z$16)) -> 0.01539917906 | AG98: =IF(L98="","",LOOKUP(L98,$G$11:$Z$11,$G$16:$Z$16)) -> 1.141739133 | AH98: =IF(ISERROR(STDEV(AB98:AG98)),"",(MAX(AB98:AG98)-MIN(AB98:AG98))+3*STDEV(AB98:AG98)) -> 2.818322943
F99: 67 | G99: =IF($F99="","",IF(H98=$G$12-G$32+1,IF(G98+1>$G$12-G$32,F99+1,G98+1),G98)) ->  | J99: 1 | K99: 7 | L99: 14 | M99: 6.729474464 | Q99: -0.2638335222 | R99: -0.3527037613 | S99: 0.8914795856 | T99: 3.326479615 | X99: 0.5159118405 | Y99: -0.06539727555 | Z99: 0.6321736637 | AA99: 1.818759359 | AE99: 0.6313663415 | AF99: 0.01539917906 | AG99: 0.4905738472 | AH99: 1.584235491
F100: 68 | G100: =IF($F100="","",IF(H99=$G$12-G$32+1,IF(G99+1>$G$12-G$32,F100+1,G99+1),G99)) ->  | J100: 1 | K100: 7 | L100: 15 | M100: 6.948297441 | Q100: -0.2638335222 | R100: -0.3527037613 | S100: 1.069220064 | T100: 3.811525407 | X100: 0.5159118405 | Y100: -0.06539727555 | Z100: 0.244634253 | AA100: 1.45391845 | AE100: 0.6313663415 | AF100: 0.01539917906 | AG100: 0.01539917906 | AH100: 1.682853584
F101: 69 | G101: =IF($F101="","",IF(H100=$G$12-G$32+1,IF(G100+1>$G$12-G$32,F101+1,G100+1),G100)) ->  | J101: 1 | K101: 7 | L101: 16 | M101: 25.77869115 | Q101: -0.2638335222 | R101: -0.3527037613 | S101: -2.263413901 | T101: 5.388614058 | X101: 0.5159118405 | Y101: -0.06539727555 | Z101: -3.407924693 | AA101: 10.2768165 | AE101: 0.6313663415 | AF101: 0.01539917906 | AG101: -3.240427251 | AH101: 10.1132606
F102: 70 | G102: =IF($F102="","",IF(H101=$G$12-G$32+1,IF(G101+1>$G$12-G$32,F102+1,G101+1),G101)) ->  | J102: 1 | K102: 8 | L102: 9 | M102: 11.16035296 | Q102: -0.2638335222 | R102: 1.069220064 | S102: 1.42470102 | T102: 4.359081529 | X102: 0.5159118405 | Y102: 0.9034512511 | Z102: -0.297920922 | AA102: 3.040858103 | AE102: 0.6313663415 | AF102: 0.7369607122 | AG102: -0.6709642305 | AH102: 3.760413328
F103: 71 | G103: =IF($F103="","",IF(H102=$G$12-G$32+1,IF(G102+1>$G$12-G$32,F103+1,G102+1),G102)) ->  | J103: 1 | K103: 8 | L103: 10 | M103: 7.877110539 | Q103: -0.2638335222 | R103: 1.069220064 | S103: -0.8859251957 | T103: 4.951799118 | X103: 0.5159118405 | Y103: 0.9034512511 | Z103: 0.1283724298 | AA103: 1.937697053 | AE103: 0.6313663415 | AF103: 0.7369607122 | AG103: 0.349781353 | AH103: 0.987614368
F104: 72 | G104: =IF($F104="","",IF(H103=$G$12-G$32+1,IF(G103+1>$G$12-G$32,F104+1,G103+1),G103)) ->  | J104: 1 | K104: 8 | L104: 11 | M104: 7.851522952 | Q104: -0.2638335222 | R104: 1.069220064 | S104: 0.5359986294 | T104: 3.34592036 | X104: 0.5159118405 | Y104: 0.9034512511 | Z104: 0.01211060658 | AA104: 2.232137398 | AE104: 0.6313663415 | AF104: 0.7369607122 | AG104: -0.1253933152 | AH104: 2.273465195
F105: 73 | G105: =IF($F105="","",IF(H104=$G$12-G$32+1,IF(G104+1>$G$12-G$32,F105+1,G104+1),G104)) ->  | J105: 1 | K105: 8 | L105: 12 | M105: 5.010114055 | Q105: -0.2638335222 | R105: 1.069220064 | S105: 0.3582581512 | T105: 3.334114587 | X105: 0.5159118405 | Y105: 0.9034512511 | Z105: 0.5159118405 | AA105: 1.05877736 | AE105: 0.6313663415 | AF105: 0.7369607122 | AG105: 0.4905738472 | AH105: 0.6172221076
F106: 74 | G106: =IF($F106="","",IF(H105=$G$12-G$32+1,IF(G105+1>$G$12-G$32,F106+1,G105+1),G105)) ->  | J106: 1 | K106: 8 | L106: 13 | M106: 6.100079293 | Q106: -0.2638335222 | R106: 1.069220064 | S106: -0.1749632832 | T106: 3.568983588 | X106: 0.5159118405 | Y106: 0.9034512511 | Z106: 0.9809591333 | AA106: 1.212506239 | AE106: 0.6313663415 | AF106: 0.7369607122 | AG106: 1.141739133 | AH106: 1.318589465
F107: 75 | G107: =IF($F107="","",IF(H106=$G$12-G$32+1,IF(G106+1>$G$12-G$32,F107+1,G106+1),G106)) ->  | J107: 1 | K107: 8 | L107: 14 | M107: 5.105842846 | Q107: -0.2638335222 | R107: 1.069220064 | S107: 0.8914795856 | T107: 3.504471988 | X107: 0.5159118405 | Y107: 0.9034512511 | Z107: 0.6321736637 | AA107: 0.98414875 | AE107: 0.6313663415 | AF107: 0.7369607122 | AG107: 0.4905738472 | AH107: 0.6172221076
F108: 76 | G108: =IF($F108="","",IF(H107=$G$12-G$32+1,IF(G107+1>$G$12-G$32,F108+1,G107+1),G107)) ->  | J108: 1 | K108: 8 | L108: 15 | M108: 7.184803083 | Q108: -0.2638335222 | R108: 1.069220064 | S108: 1.069220064 | T108: 3.641970126 | X108: 0.5159118405 | Y108: 0.9034512511 | Z108: 0.244634253 | AA108: 1.652158451 | AE108: 0.6313663415 | AF108: 0.7369607122 | AG108: 0.01539917906 | AH108: 1.890674506
F109: 77 | G109: =IF($F109="","",IF(H108=$G$12-G$32+1,IF(G108+1>$G$12-G$32,F109+1,G108+1),G108)) ->  | J109: 1 | K109: 8 | L109: 16 | M109: 30.60855528 | Q109: -0.2638335222 | R109: 1.069220064 | S109: -2.263413901 | T109: 8.364800899 | X109: 0.5159118405 | Y109: 0.9034512511 | Z109: -3.407924693 | AA109: 11.46693069 | AE109: 0.6313663415 | AF109: 0.7369607122 | AG109: -3.240427251 | AH109: 10.77682369
F110: 78 | G110: =IF($F110="","",IF(H109=$G$12-G$32+1,IF(G109+1>$G$12-G$32,F110+1,G109+1),G109)) ->  | J110: 1 | K110: 9 | L110: 10 | M110: 11.29058333 | Q110: -0.2638335222 | R110: 1.42470102 | S110: -0.8859251957 | T110: 5.897506572 | X110: 0.5159118405 | Y110: -0.297920922 | Z110: 0.1283724298 | AA110: 2.035043175 | AE110: 0.6313663415 | AF110: -0.6709642305 | AG110: 0.349781353 | AH110: 3.35803358
F111: 79 | G111: =IF($F111="","",IF(H110=$G$12-G$32+1,IF(G110+1>$G$12-G$32,F111+1,G110+1),G110)) ->  | J111: 1 | K111: 9 | L111: 11 | M111: 9.532936725 | Q111: -0.2638335222 | R111: 1.42470102 | S111: 0.5359986294 | T111: 4.222505431 | X111: 0.5159118405 | Y111: -0.297920922 | Z111: 0.01211060658 | AA111: 2.046061838 | AE111: 0.6313663415 | AF111: -0.6709642305 | AG111: -0.1253933152 | AH111: 3.264369456
F112: 80 | G112: =IF($F112="","",IF(H111=$G$12-G$32+1,IF(G111+1>$G$12-G$32,F112+1,G111+1),G111)) ->  | J112: 1 | K112: 9 | L112: 12 | M112: 9.920364731 | Q112: -0.2638335222 | R112: 1.42470102 | S112: 0.3582581512 | T112: 4.250403199 | X112: 0.5159118405 | Y112: -0.297920922 | Z112: 0.5159118405 | AA112: 2.223432456 | AE112: 0.6313663415 | AF112: -0.6709642305 | AG112: 0.4905738472 | AH112: 3.446529077
F113: 81 | G113: =IF($F113="","",IF(H112=$G$12-G$32+1,IF(G112+1>$G$12-G$32,F113+1,G112+1),G112)) ->  | J113: 1 | K113: 9 | L113: 13 | M113: 12.37707695 | Q113: -0.2638335222 | R113: 1.42470102 | S113: -0.1749632832 | T113: 4.539316725 | X113: 0.5159118405 | Y113: -0.297920922 | Z113: 0.9809591333 | AA113: 3.220835363 | AE113: 0.6313663415 | AF113: -0.6709642305 | AG113: 1.141739133 | AH113: 4.616924857
F114: 82 | G114: =IF($F114="","",IF(H113=$G$12-G$32+1,IF(G113+1>$G$12-G$32,F114+1,G113+1),G113)) ->  | J114: 1 | K114: 9 | L114: 14 | M114: 10.1749447 | Q114: -0.2638335222 | R114: 1.42470102 | S114: 0.8914795856 | T114: 4.278000426 | X114: 0.5159118405 | Y114: -0.297920922 | Z114: 0.6321736637 | AA114: 2.450415201 | AE114: 0.6313663415 | AF114: -0.6709642305 | AG114: 0.4905738472 | AH114: 3.446529077
F115: 83 | G115: =IF($F115="","",IF(H114=$G$12-G$32+1,IF(G114+1>$G$12-G$32,F115+1,G114+1),G114)) ->  | J115: 1 | K115: 9 | L115: 15 | M115: 9.67284187 | Q115: -0.2638335222 | R115: 1.42470102 | S115: 1.069220064 | T115: 4.359081529 | X115: 0.5159118405 | Y115: -0.297920922 | Z115: 0.244634253 | AA115: 2.056982841 | AE115: 0.6313663415 | AF115: -0.6709642305 | AG115: 0.01539917906 | AH115: 3.256777499
F116: 84 | G116: =IF($F116="","",IF(H115=$G$12-G$32+1,IF(G115+1>$G$12-G$32,F116+1,G115+1),G115)) ->  | J116: 1 | K116: 9 | L116: 16 | M116: 29.14552835 | Q116: -0.2638335222 | R116: 1.42470102 | S116: -2.263413901 | T116: 9.226841616 | X116: 0.5159118405 | Y116: -0.297920922 | Z116: -3.407924693 | AA116: 10.13643748 | AE116: 0.6313663415 | AF116: -0.6709642305 | AG116: -3.240427251 | AH116: 9.782249254
F117: 85 | G117: =IF($F117="","",IF(H116=$G$12-G$32+1,IF(G116+1>$G$12-G$32,F117+1,G116+1),G116)) ->  | J117: 1 | K117: 10 | L117: 11 | M117: 6.75974893 | Q117: -0.2638335222 | R117: -0.8859251957 | S117: 0.5359986294 | T117: 3.560356739 | X117: 0.5159118405 | Y117: 0.1283724298 | Z117: 0.01211060658 | AA117: 1.295179105 | AE117: 0.6313663415 | AF117: 0.349781353 | AG117: -0.1253933152 | AH117: 1.904213087
F118: 86 | G118: =IF($F118="","",IF(H117=$G$12-G$32+1,IF(G117+1>$G$12-G$32,F118+1,G117+1),G117)) ->  | J118: 1 | K118: 10 | L118: 12 | M118: 4.873198199 | Q118: -0.2638335222 | R118: -0.8859251957 | S118: 0.3582581512 | T118: 3.110458367 | X118: 0.5159118405 | Y118: 0.1283724298 | Z118: 0.5159118405 | AA118: 1.05877736 | AE118: 0.6313663415 | AF118: 0.349781353 | AG118: 0.4905738472 | AH118: 0.7039624714
F119: 87 | G119: =IF($F119="","",IF(H118=$G$12-G$32+1,IF(G118+1>$G$12-G$32,F119+1,G118+1),G118)) ->  | J119: 1 | K119: 10 | L119: 13 | M119: 6.002622845 | Q119: -0.2638335222 | R119: -0.8859251957 | S119: -0.1749632832 | T119: 1.873091086 | X119: 0.5159118405 | Y119: 0.1283724298 | Z119: 0.9809591333 | AA119: 2.13322709 | AE119: 0.6313663415 | AF119: 0.349781353 | AG119: 1.141739133 | AH119: 1.996304668
F120: 88 | G120: =IF($F120="","",IF(H119=$G$12-G$32+1,IF(G119+1>$G$12-G$32,F120+1,G119+1),G119)) ->  | J120: 1 | K120: 10 | L120: 14 | M120: 6.482349616 | Q120: -0.2638335222 | R120: -0.8859251957 | S120: 0.8914795856 | T120: 4.48320804 | X120: 0.5159118405 | Y120: 0.1283724298 | Z120: 0.6321736637 | AA120: 1.295179105 | AE120: 0.6313663415 | AF120: 0.349781353 | AG120: 0.4905738472 | AH120: 0.7039624714
F121: 89 | G121: =IF($F121="","",IF(H120=$G$12-G$32+1,IF(G120+1>$G$12-G$32,F121+1,G120+1),G120)) ->  | J121: 1 | K121: 10 | L121: 15 | M121: 7.476996451 | Q121: -0.2638335222 | R121: -0.8859251957 | S121: 1.069220064 | T121: 4.951799118 | X121: 0.5159118405 | Y121: 0.1283724298 | Z121: 0.244634253 | AA121: 0.98414875 | AE121: 0.6313663415 | AF121: 0.349781353 | AG121: 0.01539917906 | AH121: 1.541048583
F122: 90 | G122: =IF($F122="","",IF(H121=$G$12-G$32+1,IF(G121+1>$G$12-G$32,F122+1,G121+1),G121)) ->  | J122: 1 | K122: 10 | L122: 16 | M122: 25.82793205 | Q122: -0.2638335222 | R122: -0.8859251957 | S122: -2.263413901 | T122: 5.069465119 | X122: 0.5159118405 | Y122: 0.1283724298 | Z122: -3.407924693 | AA122: 10.4106012 | AE122: 0.6313663415 | AF122: 0.349781353 | AG122: -3.240427251 | AH122: 10.34786573
F123: 91 | G123: =IF($F123="","",IF(H122=$G$12-G$32+1,IF(G122+1>$G$12-G$32,F123+1,G122+1),G122)) ->  | J123: 1 | K123: 11 | L123: 12 | M123: 5.400384505 | Q123: -0.2638335222 | R123: 0.5359986294 | S123: 0.3582581512 | T123: 2.059785245 | X123: 0.5159118405 | Y123: 0.01211060658 | Z123: 0.5159118405 | AA123: 1.376410568 | AE123: 0.6313663415 | AF123: -0.1253933152 | AG123: 0.4905738472 | AH123: 1.964188692
F124: 92 | G124: =IF($F124="","",IF(H123=$G$12-G$32+1,IF(G123+1>$G$12-G$32,F124+1,G123+1),G123)) ->  | J124: 1 | K124: 11 | L124: 13 | M124: 7.717271154 | Q124: -0.2638335222 | R124: 0.5359986294 | S124: -0.1749632832 | T124: 2.114991589 | X124: 0.5159118405 | Y124: 0.01211060658 | Z124: 0.9809591333 | AA124: 2.422508804 | AE124: 0.6313663415 | AF124: -0.1253933152 | AG124: 1.141739133 | AH124: 3.17977076
F125: 93 | G125: =IF($F125="","",IF(H124=$G$12-G$32+1,IF(G124+1>$G$12-G$32,F125+1,G124+1),G124)) ->  | J125: 1 | K125: 11 | L125: 14 | M125: 6.503541736 | Q125: -0.2638335222 | R125: 0.5359986294 | S125: 0.8914795856 | T125: 2.930494743 | X125: 0.5159118405 | Y125: 0.01211060658 | Z125: 0.6321736637 | AA125: 1.608858301 | AE125: 0.6313663415 | AF125: -0.1253933152 | AG125: 0.4905738472 | AH125: 1.964188692
F126: =IF(F125="","",IF(F125+1<=$G$13,F125+1,"")) -> 94 | G126: =IF($F126="","",IF(H125=$G$12-G$32+1,IF(G125+1>$G$12-G$32,F126+1,G125+1),G125)) ->  | J126: 1 | K126: 11 | L126: =IF($F126="","",IF(K125<>K126,K126+1,IF(L125+1>$G$12,K126+1,L125+1))) -> 15 | M126: 6.570357037 | Q126: -0.2638335222 | R126: 0.5359986294 | S126: 1.069220064 | T126: 3.34592036 | X126: 0.5159118405 | Y126: 0.01211060658 | Z126: 0.244634253 | AA126: 1.260247986 | AE126: 0.6313663415 | AF126: -0.1253933152 | AG126: 0.01539917906 | AH126: 1.964188692
F127: 95 | G127: =IF($F127="","",IF(H126=$G$12-G$32+1,IF(G126+1>$G$12-G$32,F127+1,G126+1),G126)) ->  | J127: 1 | K127: 11 | L127: 16 | M127: 27.4818423 | Q127: -0.2638335222 | R127: 0.5359986294 | S127: -2.263413901 | T127: 7.125166282 | X127: 0.5159118405 | Y127: 0.01211060658 | Z127: -3.407924693 | AA127: 10.32855553 | AE127: 0.6313663415 | AF127: -0.1253933152 | AG127: -3.240427251 | AH127: 10.02812049
F128: 96 | G128: =IF($F128="","",IF(H127=$G$12-G$32+1,IF(G127+1>$G$12-G$32,F128+1,G127+1),G127)) ->  | J128: 1 | K128: 12 | L128: 13 | M128: 4.58101318 | Q128: -0.2638335222 | R128: 0.3582581512 | S128: -0.1749632832 | T128: 1.631463558 | X128: 0.5159118405 | Y128: 0.5159118405 | Z128: 0.9809591333 | AA128: 1.270532832 | AE128: 0.6313663415 | AF128: 0.4905738472 | AG128: 1.141739133 | AH128: 1.67901679
F129: 97 | G129: =IF($F129="","",IF(H128=$G$12-G$32+1,IF(G128+1>$G$12-G$32,F129+1,G128+1),G128)) ->  | J129: 1 | K129: 12 | L129: 14 | M129: 3.592276426 | Q129: -0.2638335222 | R129: 0.3582581512 | S129: 0.8914795856 | T129: 2.889990971 | X129: 0.5159118405 | Y129: 0.5159118405 | Z129: 0.6321736637 | AA129: 0.317633208 | AE129: 0.6313663415 | AF129: 0.4905738472 | AG129: 0.4905738472 | AH129: 0.3846522477
F130: 98 | G130: =IF($F130="","",IF(H129=$G$12-G$32+1,IF(G129+1>$G$12-G$32,F130+1,G129+1),G129)) ->  | J130: 1 | K130: 12 | L130: 15 | M130: 5.65949423 | Q130: -0.2638335222 | R130: 0.3582581512 | S130: 1.069220064 | T130: 3.334114587 | X130: 0.5159118405 | Y130: 0.5159118405 | Z130: 0.244634253 | AA130: 0.7411441519 | AE130: 0.6313663415 | AF130: 0.4905738472 | AG130: 0.01539917906 | AH130: 1.584235491
F131: 99 | G131: =IF($F131="","",IF(H130=$G$12-G$32+1,IF(G130+1>$G$12-G$32,F131+1,G130+1),G130)) ->  | J131: 1 | K131: 12 | L131: 16 | M131: 27.91065369 | Q131: -0.2638335222 | R131: 0.3582581512 | S131: -2.263413901 | T131: 6.731139918 | X131: 0.5159118405 | Y131: 0.5159118405 | Z131: -3.407924693 | AA131: 10.72012077 | AE131: 0.6313663415 | AF131: 0.4905738472 | AG131: -3.240427251 | AH131: 10.459393
F132: 100 | G132: =IF($F132="","",IF(H131=$G$12-G$32+1,IF(G131+1>$G$12-G$32,F132+1,G131+1),G131)) ->  | J132: 1 | K132: 13 | L132: 14 | M132: 5.954141466 | Q132: -0.2638335222 | R132: -0.1749632832 | S132: 0.8914795856 | T132: 3.08402253 | X132: 0.5159118405 | Y132: 0.9809591333 | Z132: 0.6321736637 | AA132: 1.191102146 | AE132: 0.6313663415 | AF132: 1.141739133 | AG132: 0.4905738472 | AH132: 1.67901679
F133: 101 | G133: =IF($F133="","",IF(H132=$G$12-G$32+1,IF(G132+1>$G$12-G$32,F133+1,G132+1),G132)) ->  | J133: 1 | K133: 13 | L133: 15 | M133: 8.240794008 | Q133: -0.2638335222 | R133: -0.1749632832 | S133: 1.069220064 | T133: 3.568983588 | X133: 0.5159118405 | Y133: 0.9809591333 | Z133: 0.244634253 | AA133: 1.853487476 | AE133: 0.6313663415 | AF133: 1.141739133 | AG133: 0.01539917906 | AH133: 2.818322943
F134: 102 | G134: =IF($F134="","",IF(H133=$G$12-G$32+1,IF(G133+1>$G$12-G$32,F134+1,G133+1),G133)) ->  | J134: 1 | K134: 13 | L134: 16 | M134: 28.82411045 | Q134: -0.2638335222 | R134: -0.1749632832 | S134: -2.263413901 | T134: 5.631298116 | X134: 0.5159118405 | Y134: 0.9809591333 | Z134: -3.407924693 | AA134: 11.62162847 | AE134: 0.6313663415 | AF134: 1.141739133 | AG134: -3.240427251 | AH134: 11.57118387
F135: 103 | G135: =IF($F135="","",IF(H134=$G$12-G$32+1,IF(G134+1>$G$12-G$32,F135+1,G134+1),G134)) ->  | J135: 1 | K135: 14 | L135: 15 | M135: 6.072856229 | Q135: -0.2638335222 | R135: 0.8914795856 | S135: 1.069220064 | T135: 3.504471988 | X135: 0.5159118405 | Y135: 0.6321736637 | Z135: 0.244634253 | AA135: 0.98414875 | AE135: 0.6313663415 | AF135: 0.4905738472 | AG135: 0.01539917906 | AH135: 1.584235491
F136: 104 | G136: =IF($F136="","",IF(H135=$G$12-G$32+1,IF(G135+1>$G$12-G$32,F136+1,G135+1),G135)) ->  | J136: 1 | K136: 14 | L136: 16 | M136: 29.34204901 | Q136: -0.2638335222 | R136: 0.8914795856 | S136: -2.263413901 | T136: 7.943383277 | X136: 0.5159118405 | Y136: 0.6321736637 | Z136: -3.407924693 | AA136: 10.93927273 | AE136: 0.6313663415 | AF136: 0.4905738472 | AG136: -3.240427251 | AH136: 10.459393
F137: 105 | G137: =IF($F137="","",IF(H136=$G$12-G$32+1,IF(G136+1>$G$12-G$32,F137+1,G136+1),G136)) ->  | J137: 1 | K137: 15 | L137: 16 | M137: 28.97585477 | Q137: -0.2638335222 | R137: 1.069220064 | S137: -2.263413901 | T137: 8.364800899 | X137: 0.5159118405 | Y137: 0.244634253 | Z137: -3.407924693 | AA137: 10.49779328 | AE137: 0.6313663415 | AF137: 0.01539917906 | AG137: -3.240427251 | AH137: 10.1132606
F138: 106 | G138: =IF($F138="","",IF(H137=$G$12-G$32+1,IF(G137+1>$G$12-G$32,F138+1,G137+1),G137)) ->  | J138: 2 | K138: 3 | L138: 4 | M138: 6.872483132 | Q138: -1.241406152 | R138: -0.7081847176 | S138: -0.3527037613 | T138: 2.230613573 | X138: 0.244634253 | Y138: 0.1768148561 | Z138: -0.4916906273 | AA138: 1.957189358 | AE138: 0.5785691561 | AF138: 0.3673804147 | AG138: -0.4597754891 | AH138: 2.684680202
F139: 107 | G139: =IF($F139="","",IF(H138=$G$12-G$32+1,IF(G138+1>$G$12-G$32,F139+1,G138+1),G138)) ->  | J139: 2 | K139: 3 | L139: 5 | M139: 10.6357474 | Q139: -1.241406152 | R139: -0.7081847176 | S139: 1.069220064 | T139: 5.940189488 | X139: 0.244634253 | Y139: 0.1768148561 | Z139: -0.336674863 | AA139: 1.534874623 | AE139: 0.5785691561 | AF139: 0.3673804147 | AG139: -0.6357661069 | AH139: 3.160683289
F140: 108 | G140: =IF($F140="","",IF(H139=$G$12-G$32+1,IF(G139+1>$G$12-G$32,F140+1,G139+1),G139)) ->  | J140: 2 | K140: 3 | L140: 6 | M140: 3.534443804 | Q140: -1.241406152 | R140: -0.7081847176 | S140: -0.1749632832 | T140: 2.666107172 | X140: 0.244634253 | Y140: 0.1768148561 | Z140: 0.244634253 | AA140: 0.185286038 | AE140: 0.5785691561 | AF140: 0.3673804147 | AG140: 0.3145832294 | AH140: 0.6830505938
F141: 109 | G141: =IF($F141="","",IF(H140=$G$12-G$32+1,IF(G140+1>$G$12-G$32,F141+1,G140+1),G140)) ->  | J141: 2 | K141: 3 | L141: 7 | M141: 4.446280864 | Q141: -1.241406152 | R141: -0.7081847176 | S141: -0.3527037613 | T141: 2.230613573 | X141: 0.244634253 | Y141: 0.1768148561 | Z141: -0.06539727555 | AA141: 0.7989881769 | AE141: 0.5785691561 | AF141: 0.3673804147 | AG141: 0.01539917906 | AH141: 1.416679114
F142: 110 | G142: =IF($F142="","",IF(H141=$G$12-G$32+1,IF(G141+1>$G$12-G$32,F142+1,G141+1),G141)) ->  | J142: 2 | K142: 3 | L142: 8 | M142: 8.796801742 | Q142: -1.241406152 | R142: -0.7081847176 | S142: 1.069220064 | T142: 5.940189488 | X142: 0.244634253 | Y142: 0.1768148561 | Z142: 0.9034512511 | AA142: 1.930779093 | AE142: 0.5785691561 | AF142: 0.3673804147 | AG142: 0.7369607122 | AH142: 0.9258331614
F143: 111 | G143: =IF($F143="","",IF(H142=$G$12-G$32+1,IF(G142+1>$G$12-G$32,F143+1,G142+1),G142)) ->  | J143: 2 | K143: 3 | L143: 9 | M143: 11.58388795 | Q143: -1.241406152 | R143: -0.7081847176 | S143: 1.42470102 | T143: 6.898421099 | X143: 0.244634253 | Y143: 0.1768148561 | Z143: -0.297920922 | AA143: 1.429408867 | AE143: 0.5785691561 | AF143: 0.3673804147 | AG143: -0.6709642305 | AH143: 3.256057983
F144: 112 | G144: =IF($F144="","",IF(H143=$G$12-G$32+1,IF(G143+1>$G$12-G$32,F144+1,G143+1),G143)) ->  | J144: 2 | K144: 3 | L144: 10 | M144: 2.249922748 | Q144: -1.241406152 | R144: -0.7081847176 | S144: -0.8859251957 | T144: 1.34773063 | X144: 0.244634253 | Y144: 0.1768148561 | Z144: 0.1283724298 | AA144: 0.2914600715 | AE144: 0.5785691561 | AF144: 0.3673804147 | AG144: 0.349781353 | AH144: 0.6107320472
F145: 113 | G145: =IF($F145="","",IF(H144=$G$12-G$32+1,IF(G144+1>$G$12-G$32,F145+1,G144+1),G144)) ->  | J145: 2 | K145: 3 | L145: 11 | M145: 6.892642939 | Q145: -1.241406152 | R145: -0.7081847176 | S145: 0.5359986294 | T145: 4.513684662 | X145: 0.244634253 | Y145: 0.1768148561 | Z145: 0.01211060658 | AA145: 0.5912593567 | AE145: 0.5785691561 | AF145: 0.3673804147 | AG145: -0.1253933152 | AH145: 1.787698921
F146: 114 | G146: =IF($F146="","",IF(H145=$G$12-G$32+1,IF(G145+1>$G$12-G$32,F146+1,G145+1),G145)) ->  | J146: 2 | K146: 3 | L146: 12 | M146: 5.45002371 | Q146: -1.241406152 | R146: -0.7081847176 | S146: 0.3582581512 | T146: 4.043191889 | X146: 0.244634253 | Y146: 0.1768148561 | Z146: 0.5159118405 | AA146: 0.8773967589 | AE146: 0.5785691561 | AF146: 0.3673804147 | AG146: 0.4905738472 | AH146: 0.5294350627
F147: 115 | G147: =IF($F147="","",IF(H146=$G$12-G$32+1,IF(G146+1>$G$12-G$32,F147+1,G146+1),G146)) ->  | J147: 2 | K147: 3 | L147: 13 | M147: 6.783438603 | Q147: -1.241406152 | R147: -0.7081847176 | S147: -0.1749632832 | T147: 2.666107172 | X147: 0.244634253 | Y147: 0.1768148561 | Z147: 0.9809591333 | AA147: 2.142102695 | AE147: 0.5785691561 | AF147: 0.3673804147 | AG147: 1.141739133 | AH147: 1.975228736
F148: 116 | G148: =IF($F148="","",IF(H147=$G$12-G$32+1,IF(G147+1>$G$12-G$32,F148+1,G147+1),G147)) ->  | J148: 2 | K148: 3 | L148: 14 | M148: 7.184672086 | Q148: -1.241406152 | R148: -0.7081847176 | S148: 0.8914795856 | T148: 5.462852528 | X148: 0.244634253 | Y148: 0.1768148561 | Z148: 0.6321736637 | AA148: 1.192384495 | AE148: 0.5785691561 | AF148: 0.3673804147 | AG148: 0.4905738472 | AH148: 0.5294350627
F149: 117 | G149: =IF($F149="","",IF(H148=$G$12-G$32+1,IF(G148+1>$G$12-G$32,F149+1,G148+1),G148)) ->  | J149: 2 | K149: 3 | L149: 15 | M149: 7.54215464 | Q149: -1.241406152 | R149: -0.7081847176 | S149: 1.069220064 | T149: 5.940189488 | X149: 0.244634253 | Y149: 0.1768148561 | Z149: 0.244634253 | AA149: 0.185286038 | AE149: 0.5785691561 | AF149: 0.3673804147 | AG149: 0.01539917906 | AH149: 1.416679114
F150: 118 | G150: =IF($F150="","",IF(H149=$G$12-G$32+1,IF(G149+1>$G$12-G$32,F150+1,G149+1),G149)) ->  | J150: 2 | K150: 3 | L150: 16 | M150: 24.10582927 | Q150: -1.241406152 | R150: -0.7081847176 | S150: -2.263413901 | T150: 3.926166578 | X150: 0.244634253 | Y150: 0.1768148561 | Z150: -3.407924693 | AA150: 9.921068811 | AE150: 0.5785691561 | AF150: 0.3673804147 | AG150: -3.240427251 | AH150: 10.25859388
F151: 119 | G151: =IF($F151="","",IF(H150=$G$12-G$32+1,IF(G150+1>$G$12-G$32,F151+1,G150+1),G150)) ->  | J151: 2 | K151: 4 | L151: 5 | M151: 10.89106528 | Q151: -1.241406152 | R151: -0.3527037613 | S151: 1.069220064 | T151: 5.807192992 | X151: 0.244634253 | Y151: -0.4916906273 | Z151: -0.336674863 | AA151: 1.900879197 | AE151: 0.5785691561 | AF151: -0.4597754891 | AG151: -0.6357661069 | AH151: 3.182993092
F152: 120 | G152: =IF($F152="","",IF(H151=$G$12-G$32+1,IF(G151+1>$G$12-G$32,F152+1,G151+1),G151)) ->  | J152: 2 | K152: 4 | L152: 6 | M152: 7.449549629 | Q152: -1.241406152 | R152: -0.3527037613 | S152: -0.1749632832 | T152: 2.780509966 | X152: 0.244634253 | Y152: -0.4916906273 | Z152: 0.244634253 | AA152: 2.011676984 | AE152: 0.5785691561 | AF152: -0.4597754891 | AG152: 0.3145832294 | AH152: 2.657362679
F153: 121 | G153: =IF($F153="","",IF(H152=$G$12-G$32+1,IF(G152+1>$G$12-G$32,F153+1,G152+1),G152)) ->  | J153: 2 | K153: 4 | L153: 7 | M153: 6.871096878 | Q153: -1.241406152 | R153: -0.3527037613 | S153: -0.3527037613 | T153: 2.427980084 | X153: 0.244634253 | Y153: -0.4916906273 | Z153: -0.06539727555 | AA153: 1.845391988 | AE153: 0.5785691561 | AF153: -0.4597754891 | AG153: 0.01539917906 | AH153: 2.597724806
F154: 122 | G154: =IF($F154="","",IF(H153=$G$12-G$32+1,IF(G153+1>$G$12-G$32,F154+1,G153+1),G153)) ->  | J154: 2 | K154: 4 | L154: 8 | M154: 12.44302357 | Q154: -1.241406152 | R154: -0.3527037613 | S154: 1.069220064 | T154: 5.807192992 | X154: 0.244634253 | Y154: -0.4916906273 | Z154: 0.9034512511 | AA154: 3.488930918 | AE154: 0.5785691561 | AF154: -0.4597754891 | AG154: 0.7369607122 | AH154: 3.146899665
F155: 123 | G155: =IF($F155="","",IF(H154=$G$12-G$32+1,IF(G154+1>$G$12-G$32,F155+1,G154+1),G154)) ->  | J155: 2 | K155: 4 | L155: 9 | M155: 11.87608218 | Q155: -1.241406152 | R155: -0.3527037613 | S155: 1.42470102 | T155: 6.738653148 | X155: 0.244634253 | Y155: -0.4916906273 | Z155: -0.297920922 | AA155: 1.881371045 | AE155: 0.5785691561 | AF155: -0.4597754891 | AG155: -0.6709642305 | AH155: 3.256057983
F156: 124 | G156: =IF($F156="","",IF(H155=$G$12-G$32+1,IF(G155+1>$G$12-G$32,F156+1,G155+1),G155)) ->  | J156: 2 | K156: 4 | L156: 10 | M156: 6.829537003 | Q156: -1.241406152 | R156: -0.3527037613 | S156: -0.8859251957 | T156: 2.230613573 | X156: 0.244634253 | Y156: -0.4916906273 | Z156: 0.1283724298 | AA156: 1.923866039 | AE156: 0.5785691561 | AF156: -0.4597754891 | AG156: 0.349781353 | AH156: 2.675057391
F157: 125 | G157: =IF($F157="","",IF(H156=$G$12-G$32+1,IF(G156+1>$G$12-G$32,F157+1,G156+1),G156)) ->  | J157: 2 | K157: 4 | L157: 11 | M157: 8.937441791 | Q157: -1.241406152 | R157: -0.3527037613 | S157: 0.5359986294 | T157: 4.443511953 | X157: 0.244634253 | Y157: -0.4916906273 | Z157: 0.01211060658 | AA157: 1.865521891 | AE157: 0.5785691561 | AF157: -0.4597754891 | AG157: -0.1253933152 | AH157: 2.628407947
F158: 126 | G158: =IF($F158="","",IF(H157=$G$12-G$32+1,IF(G157+1>$G$12-G$32,F158+1,G157+1),G157)) ->  | J158: 2 | K158: 4 | L158: 12 | M158: 9.341492933 | Q158: -1.241406152 | R158: -0.3527037613 | S158: 0.3582581512 | T158: 4.004092924 | X158: 0.244634253 | Y158: -0.4916906273 | Z158: 0.5159118405 | AA158: 2.571745328 | AE158: 0.5785691561 | AF158: -0.4597754891 | AG158: 0.4905738472 | AH158: 2.76565468
F159: 127 | G159: =IF($F159="","",IF(H158=$G$12-G$32+1,IF(G158+1>$G$12-G$32,F159+1,G158+1),G158)) ->  | J159: 2 | K159: 4 | L159: 13 | M159: 10.50091255 | Q159: -1.241406152 | R159: -0.3527037613 | S159: -0.1749632832 | T159: 2.780509966 | X159: 0.244634253 | Y159: -0.4916906273 | Z159: 0.9809591333 | AA159: 3.681624401 | AE159: 0.5785691561 | AF159: -0.4597754891 | AG159: 1.141739133 | AH159: 4.038778183
F160: 128 | G160: =IF($F160="","",IF(H159=$G$12-G$32+1,IF(G159+1>$G$12-G$32,F160+1,G159+1),G159)) ->  | J160: 2 | K160: 4 | L160: 14 | M160: 10.94915449 | Q160: -1.241406152 | R160: -0.3527037613 | S160: 0.8914795856 | T160: 5.346991922 | X160: 0.244634253 | Y160: -0.4916906273 | Z160: 0.6321736637 | AA160: 2.836507892 | AE160: 0.5785691561 | AF160: -0.4597754891 | AG160: 0.4905738472 | AH160: 2.76565468
F161: 129 | G161: =IF($F161="","",IF(H160=$G$12-G$32+1,IF(G160+1>$G$12-G$32,F161+1,G160+1),G160)) ->  | J161: 2 | K161: 4 | L161: 15 | M161: 10.41659478 | Q161: -1.241406152 | R161: -0.3527037613 | S161: 1.069220064 | T161: 5.807192992 | X161: 0.244634253 | Y161: -0.4916906273 | Z161: 0.244634253 | AA161: 2.011676984 | AE161: 0.5785691561 | AF161: -0.4597754891 | AG161: 0.01539917906 | AH161: 2.597724806
F162: 130 | G162: =IF($F162="","",IF(H161=$G$12-G$32+1,IF(G161+1>$G$12-G$32,F162+1,G161+1),G161)) ->  | J162: 2 | K162: 4 | L162: 16 | M162: =IF(ISERROR(T162+AA162),"",T162+AA162+AH162) -> 23.96950636 | N162: =IF(G162="","",LOOKUP(G162,$G$11:$Z$11,$G$14:$Z$14)) ->  | O162: =IF(H162="","",LOOKUP(H162,$G$11:$Z$11,$G$14:$Z$14)) ->  | P162: =IF(I162="","",LOOKUP(I162,$G$11:$Z$11,$G$14:$Z$14)) ->  | Q162: =IF(J162="","",LOOKUP(J162,$G$11:$Z$11,$G$14:$Z$14)) -> -1.241406152 | R162: =IF(K162="","",LOOKUP(K162,$G$11:$Z$11,$G$14:$Z$14)) -> -0.3527037613 | S162: =IF(L162="","",LOOKUP(L162,$G$11:$Z$11,$G$14:$Z$14)) -> -2.263413901 | T162: =IF(ISERROR(STDEV(N162:S162)),"",(MAX(N162:S162)-MIN(N162:S162))+3*STDEV(N162:S162)) -> 4.779099501 | U162: =IF(G162="","",LOOKUP(G162,$G$11:$Z$11,$G$15:$Z$15)) ->  | V162: =IF(H162="","",LOOKUP(H162,$G$11:$Z$11,$G$15:$Z$15)) ->  | W162: =IF(I162="","",LOOKUP(I162,$G$11:$Z$11,$G$15:$Z$15)) ->  | X162: =IF(J162="","",LOOKUP(J162,$G$11:$Z$11,$G$15:$Z$15)) -> 0.244634253 | Y162: =IF(K162="","",LOOKUP(K162,$G$11:$Z$11,$G$15:$Z$15)) -> -0.4916906273 | Z162: =IF(L162="","",LOOKUP(L162,$G$11:$Z$11,$G$15:$Z$15)) -> -3.407924693 | AA162: =IF(ISERROR(STDEV(U162:Z162)),"",(MAX(U162:Z162)-MIN(U162:Z162))+3*STDEV(U162:Z162)) -> 9.447528614 | AB162: =IF(G162="","",LOOKUP(G162,$G$11:$Z$11,$G$16:$Z$16)) ->  | AC162: =IF(H162="","",LOOKUP(H162,$G$11:$Z$11,$G$16:$Z$16)) ->  | AD162: =IF(I162="","",LOOKUP(I162,$G$11:$Z$11,$G$16:$Z$16)) ->  | AE162: =IF(J162="","",LOOKUP(J162,$G$11:$Z$11,$G$16:$Z$16)) -> 0.5785691561 | AF162: =IF(K162="","",LOOKUP(K162,$G$11:$Z$11,$G$16:$Z$16)) -> -0.4597754891 | AG162: =IF(L162="","",LOOKUP(L162,$G$11:$Z$11,$G$16:$Z$16)) -> -3.240427251 | AH162: =IF(ISERROR(STDEV(AB162:AG162)),"",(MAX(AB162:AG162)-MIN(AB162:AG162))+3*STDEV(AB162:AG162)) -> 9.742878248
F163: 131 | G163: =IF($F163="","",IF(H162=$G$12-G$32+1,IF(G162+1>$G$12-G$32,F163+1,G162+1),G162)) ->  | J163: 2 | K163: 5 | L163: 6 | M163: 10.49851922 | Q163: -1.241406152 | R163: 1.069220064 | S163: -0.1749632832 | T163: 5.779981942 | X163: 0.244634253 | Y163: -0.336674863 | Z163: 0.244634253 | AA163: 1.58816604 | AE163: 0.5785691561 | AF163: -0.6357661069 | AG163: 0.3145832294 | AH163: 3.130371234
F164: 132 | G164: =IF($F164="","",IF(H163=$G$12-G$32+1,IF(G163+1>$G$12-G$32,F164+1,G163+1),G163)) ->  | J164: 2 | K164: 5 | L164: 7 | M164: 10.29854302 | Q164: -1.241406152 | R164: 1.069220064 | S164: -0.3527037613 | T164: 5.807192992 | X164: 0.244634253 | Y164: -0.336674863 | Z164: -0.06539727555 | AA164: 1.45391845 | AE164: 0.5785691561 | AF164: -0.6357661069 | AG164: 0.01539917906 | AH164: 3.037431579
F165: 133 | G165: =IF($F165="","",IF(H164=$G$12-G$32+1,IF(G164+1>$G$12-G$32,F165+1,G164+1),G164)) ->  | J165: 2 | K165: 5 | L165: 8 | M165: 13.0400246 | Q165: -1.241406152 | R165: 1.069220064 | S165: 1.069220064 | T165: 6.312748219 | X165: 0.244634253 | Y165: -0.336674863 | Z165: 0.9034512511 | AA165: 3.101525952 | AE165: 0.5785691561 | AF165: -0.6357661069 | AG165: 0.7369607122 | AH165: 3.625750433
F166: 134 | G166: =IF($F166="","",IF(H165=$G$12-G$32+1,IF(G165+1>$G$12-G$32,F166+1,G165+1),G165)) ->  | J166: 2 | K166: 5 | L166: 9 | M166: 11.94924186 | Q166: -1.241406152 | R166: 1.069220064 | S166: 1.42470102 | T166: 7.008943976 | X166: 0.244634253 | Y166: -0.336674863 | Z166: -0.297920922 | AA166: 1.556338557 | AE166: 0.5785691561 | AF166: -0.6357661069 | AG166: -0.6709642305 | AH166: 3.383959325
F167: 135 | G167: =IF($F167="","",IF(H166=$G$12-G$32+1,IF(G166+1>$G$12-G$32,F167+1,G166+1),G166)) ->  | J167: 2 | K167: 5 | L167: 10 | M167: 10.69743705 | Q167: -1.241406152 | R167: 1.069220064 | S167: -0.8859251957 | T167: 6.043176257 | X167: 0.244634253 | Y167: -0.336674863 | Z167: 0.1283724298 | AA167: 1.50410873 | AE167: 0.5785691561 | AF167: -0.6357661069 | AG167: 0.349781353 | AH167: 3.150152062
F168: 136 | G168: =IF($F168="","",IF(H167=$G$12-G$32+1,IF(G167+1>$G$12-G$32,F168+1,G167+1),G167)) ->  | J168: 2 | K168: 5 | L168: 11 | M168: 10.44279354 | Q168: -1.241406152 | R168: 1.069220064 | S168: 0.5359986294 | T168: 5.940189488 | X168: 0.244634253 | Y168: -0.336674863 | Z168: 0.01211060658 | AA168: 1.459066632 | AE168: 0.5785691561 | AF168: -0.6357661069 | AG168: -0.1253933152 | AH168: 3.043537417
F169: 137 | G169: =IF($F169="","",IF(H168=$G$12-G$32+1,IF(G168+1>$G$12-G$32,F169+1,G168+1),G168)) ->  | J169: 2 | K169: 5 | L169: 12 | M169: 11.26604927 | Q169: -1.241406152 | R169: 1.069220064 | S169: 0.3582581512 | T169: 5.860989486 | X169: 0.244634253 | Y169: -0.336674863 | Z169: 0.5159118405 | AA169: 2.15934753 | AE169: 0.5785691561 | AF169: -0.6357661069 | AG169: 0.4905738472 | AH169: 3.245712258
F170: 138 | G170: =IF($F170="","",IF(H169=$G$12-G$32+1,IF(G169+1>$G$12-G$32,F170+1,G169+1),G169)) ->  | J170: 2 | K170: 5 | L170: 13 | M170: 13.58136806 | Q170: -1.241406152 | R170: 1.069220064 | S170: -0.1749632832 | T170: 5.779981942 | X170: 0.244634253 | Y170: -0.336674863 | Z170: 0.9809591333 | AA170: 3.298639031 | AE170: 0.5785691561 | AF170: -0.6357661069 | AG170: 1.141739133 | AH170: 4.502747092
F171: 139 | G171: =IF($F171="","",IF(H170=$G$12-G$32+1,IF(G170+1>$G$12-G$32,F171+1,G170+1),G170)) ->  | J171: 2 | K171: 5 | L171: 14 | M171: 11.84553504 | Q171: -1.241406152 | R171: 1.069220064 | S171: 0.8914795856 | T171: 6.168045059 | X171: 0.244634253 | Y171: -0.336674863 | Z171: 0.6321736637 | AA171: 2.431777721 | AE171: 0.5785691561 | AF171: -0.6357661069 | AG171: 0.4905738472 | AH171: 3.245712258
F172: 140 | G172: =IF($F172="","",IF(H171=$G$12-G$32+1,IF(G171+1>$G$12-G$32,F172+1,G171+1),G171)) ->  | J172: 2 | K172: 5 | L172: 15 | M172: 10.93834584 | Q172: -1.241406152 | R172: 1.069220064 | S172: 1.069220064 | T172: 6.312748219 | X172: 0.244634253 | Y172: -0.336674863 | Z172: 0.244634253 | AA172: 1.58816604 | AE172: 0.5785691561 | AF172: -0.6357661069 | AG172: 0.01539917906 | AH172: 3.037431579
F173: 141 | G173: =IF($F173="","",IF(H172=$G$12-G$32+1,IF(G172+1>$G$12-G$32,F173+1,G172+1),G172)) ->  | J173: 2 | K173: 5 | L173: 16 | M173: 27.66777155 | Q173: -1.241406152 | R173: 1.069220064 | S173: -2.263413901 | T173: 8.454636868 | X173: 0.244634253 | Y173: -0.336674863 | Z173: -3.407924693 | AA173: 9.540472327 | AE173: 0.5785691561 | AF173: -0.6357661069 | AG173: -3.240427251 | AH173: 9.672662356
F174: 142 | G174: =IF($F174="","",IF(H173=$G$12-G$32+1,IF(G173+1>$G$12-G$32,F174+1,G173+1),G173)) ->  | J174: 2 | K174: 6 | L174: 7 | M174: 5.036006588 | Q174: -1.241406152 | R174: -0.1749632832 | S174: -0.3527037613 | T174: 2.780509966 | X174: 0.244634253 | Y174: 0.244634253 | Z174: -0.06539727555 | AA174: 0.8470218879 | AE174: 0.5785691561 | AF174: 0.3145832294 | AG174: 0.01539917906 | AH174: 1.408474734
F175: 143 | G175: =IF($F175="","",IF(H174=$G$12-G$32+1,IF(G174+1>$G$12-G$32,F175+1,G174+1),G174)) ->  | J175: 2 | K175: 6 | L175: 8 | M175: 8.642412789 | Q175: -1.241406152 | R175: -0.1749632832 | S175: 1.069220064 | T175: 5.779981942 | X175: 0.244634253 | Y175: 0.244634253 | Z175: 0.9034512511 | AA175: 1.799921512 | AE175: 0.5785691561 | AF175: 0.3145832294 | AG175: 0.7369607122 | AH175: 1.062509335
F176: 144 | G176: =IF($F176="","",IF(H175=$G$12-G$32+1,IF(G175+1>$G$12-G$32,F176+1,G175+1),G175)) ->  | J176: 2 | K176: 6 | L176: 9 | M176: 11.39938736 | Q176: -1.241406152 | R176: -0.1749632832 | S176: 1.42470102 | T176: 6.691840719 | X176: 0.244634253 | Y176: 0.244634253 | Z176: -0.297920922 | AA176: 1.482288304 | AE176: 0.5785691561 | AF176: 0.3145832294 | AG176: -0.6709642305 | AH176: 3.225258336
F177: 145 | G177: =IF($F177="","",IF(H176=$G$12-G$32+1,IF(G176+1>$G$12-G$32,F177+1,G176+1),G176)) ->  | J177: 2 | K177: 6 | L177: 10 | M177: 3.707088538 | Q177: -1.241406152 | R177: -0.1749632832 | S177: -0.8859251957 | T177: 2.695461259 | X177: 0.244634253 | Y177: 0.244634253 | Z177: 0.1283724298 | AA177: 0.317633208 | AE177: 0.5785691561 | AF177: 0.3145832294 | AG177: 0.349781353 | AH177: 0.6939940714
F178: 146 | G178: =IF($F178="","",IF(H177=$G$12-G$32+1,IF(G177+1>$G$12-G$32,F178+1,G177+1),G177)) ->  | J178: 2 | K178: 6 | L178: 11 | M178: 6.867342454 | Q178: -1.241406152 | R178: -0.1749632832 | S178: 0.5359986294 | T178: 4.461227146 | X178: 0.244634253 | Y178: 0.244634253 | Z178: 0.01211060658 | AA178: 0.6352664159 | AE178: 0.5785691561 | AF178: 0.3145832294 | AG178: -0.1253933152 | AH178: 1.770848892
F179: 147 | G179: =IF($F179="","",IF(H178=$G$12-G$32+1,IF(G178+1>$G$12-G$32,F179+1,G178+1),G178)) ->  | J179: 2 | K179: 6 | L179: 12 | M179: 5.451567131 | Q179: -1.241406152 | R179: -0.1749632832 | S179: 0.3582581512 | T179: 4.043191889 | X179: 0.244634253 | Y179: 0.244634253 | Z179: 0.5159118405 | AA179: 0.7411441519 | AE179: 0.5785691561 | AF179: 0.3145832294 | AG179: 0.4905738472 | AH179: 0.6672310907
F180: 148 | G180: =IF($F180="","",IF(H179=$G$12-G$32+1,IF(G179+1>$G$12-G$32,F180+1,G179+1),G179)) ->  | J180: 2 | K180: 6 | L180: 13 | M180: 7.019908031 | Q180: -1.241406152 | R180: -0.1749632832 | S180: -0.1749632832 | T180: 2.913576101 | X180: 0.244634253 | Y180: 0.244634253 | Z180: 0.9809591333 | AA180: 2.011676984 | AE180: 0.5785691561 | AF180: 0.3145832294 | AG180: 1.141739133 | AH180: 2.094654946
F181: 149 | G181: =IF($F181="","",IF(H180=$G$12-G$32+1,IF(G180+1>$G$12-G$32,F181+1,G180+1),G180)) ->  | J181: 2 | K181: 6 | L181: 14 | M181: 7.058222795 | Q181: -1.241406152 | R181: -0.1749632832 | S181: 0.8914795856 | T181: 5.332214344 | X181: 0.244634253 | Y181: 0.244634253 | Z181: 0.6321736637 | AA181: 1.05877736 | AE181: 0.5785691561 | AF181: 0.3145832294 | AG181: 0.4905738472 | AH181: 0.6672310907
F182: 150 | G182: =IF($F182="","",IF(H181=$G$12-G$32+1,IF(G181+1>$G$12-G$32,F182+1,G181+1),G181)) ->  | J182: 2 | K182: 6 | L182: 15 | M182: 7.188456676 | Q182: -1.241406152 | R182: -0.1749632832 | S182: 1.069220064 | T182: 5.779981942 | X182: 0.244634253 | Y182: 0.244634253 | Z182: 0.244634253 | AA182: 0 | AE182: 0.5785691561 | AF182: 0.3145832294 | AG182: 0.01539917906 | AH182: 1.408474734
F183: 151 | G183: =IF($F183="","",IF(H182=$G$12-G$32+1,IF(G182+1>$G$12-G$32,F183+1,G182+1),G182)) ->  | J183: 2 | K183: 6 | L183: 16 | M183: 25.41767808 | Q183: -1.241406152 | R183: -0.1749632832 | S183: -2.263413901 | T183: 5.221362893 | X183: 0.244634253 | Y183: 0.244634253 | Z183: -3.407924693 | AA183: 9.978976617 | AE183: 0.5785691561 | AF183: 0.3145832294 | AG183: -3.240427251 | AH183: 10.21733857
F184: 152 | G184: =IF($F184="","",IF(H183=$G$12-G$32+1,IF(G183+1>$G$12-G$32,F184+1,G183+1),G183)) ->  | J184: 2 | K184: 7 | L184: 8 | M184: 10.11962926 | Q184: -1.241406152 | R184: -0.3527037613 | S184: 1.069220064 | T184: 5.807192992 | X184: 0.244634253 | Y184: -0.06539727555 | Z184: 0.9034512511 | AA184: 2.45318012 | AE184: 0.5785691561 | AF184: 0.01539917906 | AG184: 0.7369607122 | AH184: 1.859256146
F185: 153 | G185: =IF($F185="","",IF(H184=$G$12-G$32+1,IF(G184+1>$G$12-G$32,F185+1,G184+1),G184)) ->  | J185: 2 | K185: 7 | L185: 9 | M185: 11.224672 | Q185: -1.241406152 | R185: -0.3527037613 | S185: 1.42470102 | T185: 6.738653148 | X185: 0.244634253 | Y185: -0.06539727555 | Z185: -0.297920922 | AA185: 1.359151384 | AE185: 0.5785691561 | AF185: 0.01539917906 | AG185: -0.6709642305 | AH185: 3.126867469
F186: 154 | G186: =IF($F186="","",IF(H185=$G$12-G$32+1,IF(G185+1>$G$12-G$32,F186+1,G185+1),G185)) ->  | J186: 2 | K186: 7 | L186: 10 | M186: 4.423371928 | Q186: -1.241406152 | R186: -0.3527037613 | S186: -0.8859251957 | T186: 2.230613573 | X186: 0.244634253 | Y186: -0.06539727555 | Z186: 0.1283724298 | AA186: 0.779898093 | AE186: 0.5785691561 | AF186: 0.01539917906 | AG186: 0.349781353 | AH186: 1.412860262
F187: 155 | G187: =IF($F187="","",IF(H186=$G$12-G$32+1,IF(G186+1>$G$12-G$32,F187+1,G186+1),G186)) ->  | J187: 2 | K187: 7 | L187: 11 | M187: 7.059048301 | Q187: -1.241406152 | R187: -0.3527037613 | S187: 0.5359986294 | T187: 4.443511953 | X187: 0.244634253 | Y187: -0.06539727555 | Z187: 0.01211060658 | AA187: 0.7940680973 | AE187: 0.5785691561 | AF187: 0.01539917906 | AG187: -0.1253933152 | AH187: 1.82146825
F188: 156 | G188: =IF($F188="","",IF(H187=$G$12-G$32+1,IF(G187+1>$G$12-G$32,F188+1,G187+1),G187)) ->  | J188: 2 | K188: 7 | L188: 12 | M188: 6.930049793 | Q188: -1.241406152 | R188: -0.3527037613 | S188: 0.3582581512 | T188: 4.004092924 | X188: 0.244634253 | Y188: -0.06539727555 | Z188: 0.5159118405 | AA188: 1.45391845 | AE188: 0.5785691561 | AF188: 0.01539917906 | AG188: 0.4905738472 | AH188: 1.472038419
F189: 157 | G189: =IF($F189="","",IF(H188=$G$12-G$32+1,IF(G188+1>$G$12-G$32,F189+1,G188+1),G188)) ->  | J189: 2 | K189: 7 | L189: 13 | M189: 8.255085144 | Q189: -1.241406152 | R189: -0.3527037613 | S189: -0.1749632832 | T189: 2.780509966 | X189: 0.244634253 | Y189: -0.06539727555 | Z189: 0.9809591333 | AA189: 2.658725293 | AE189: 0.5785691561 | AF189: 0.01539917906 | AG189: 1.141739133 | AH189: 2.815849885
F190: =IF(F189="","",IF(F189+1<=$G$13,F189+1,"")) -> 158 | G190: =IF($F190="","",IF(H189=$G$12-G$32+1,IF(G189+1>$G$12-G$32,F190+1,G189+1),G189)) ->  | J190: 2 | K190: 7 | L190: =IF($F190="","",IF(K189<>K190,K190+1,IF(L189+1>$G$12,K190+1,L189+1))) -> 14 | M190: 8.565108475 | Q190: -1.241406152 | R190: -0.3527037613 | S190: 0.8914795856 | T190: 5.346991922 | X190: 0.244634253 | Y190: -0.06539727555 | Z190: 0.6321736637 | AA190: 1.746078134 | AE190: 0.5785691561 | AF190: 0.01539917906 | AG190: 0.4905738472 | AH190: 1.472038419
F191: 159 | G191: =IF($F191="","",IF(H190=$G$12-G$32+1,IF(G190+1>$G$12-G$32,F191+1,G190+1),G190)) ->  | J191: 2 | K191: 7 | L191: 15 | M191: 8.19282387 | Q191: -1.241406152 | R191: -0.3527037613 | S191: 1.069220064 | T191: 5.807192992 | X191: 0.244634253 | Y191: -0.06539727555 | Z191: 0.244634253 | AA191: 0.8470218879 | AE191: 0.5785691561 | AF191: 0.01539917906 | AG191: 0.01539917906 | AH191: 1.538608991
F192: 160 | G192: =IF($F192="","",IF(H191=$G$12-G$32+1,IF(G191+1>$G$12-G$32,F192+1,G191+1),G191)) ->  | J192: 2 | K192: 7 | L192: 16 | M192: 24.51133853 | Q192: -1.241406152 | R192: -0.3527037613 | S192: -2.263413901 | T192: 4.779099501 | X192: 0.244634253 | Y192: -0.06539727555 | Z192: -3.407924693 | AA192: 9.728305311 | AE192: 0.5785691561 | AF192: 0.01539917906 | AG192: -3.240427251 | AH192: 10.00393372
F193: 161 | G193: =IF($F193="","",IF(H192=$G$12-G$32+1,IF(G192+1>$G$12-G$32,F193+1,G192+1),G192)) ->  | J193: 2 | K193: 8 | L193: 9 | M193: 13.73676751 | Q193: -1.241406152 | R193: 1.069220064 | S193: 1.42470102 | T193: 7.008943976 | X193: 0.244634253 | Y193: 0.9034512511 | Z193: -0.297920922 | AA193: 3.006241027 | AE193: 0.5785691561 | AF193: 0.7369607122 | AG193: -0.6709642305 | AH193: 3.721582506
F194: 162 | G194: =IF($F194="","",IF(H193=$G$12-G$32+1,IF(G193+1>$G$12-G$32,F194+1,G193+1),G193)) ->  | J194: 2 | K194: 8 | L194: 10 | M194: 9.043370512 | Q194: -1.241406152 | R194: 1.069220064 | S194: -0.8859251957 | T194: 6.043176257 | X194: 0.244634253 | Y194: 0.9034512511 | Z194: 0.1283724298 | AA194: 2.029054795 | AE194: 0.5785691561 | AF194: 0.7369607122 | AG194: 0.349781353 | AH194: 0.9711394608
F195: 163 | G195: =IF($F195="","",IF(H194=$G$12-G$32+1,IF(G194+1>$G$12-G$32,F195+1,G194+1),G194)) ->  | J195: 2 | K195: 8 | L195: 11 | M195: 10.45804836 | Q195: -1.241406152 | R195: 1.069220064 | S195: 0.5359986294 | T195: 5.940189488 | X195: 0.244634253 | Y195: 0.9034512511 | Z195: 0.01211060658 | AA195: 2.278385288 | AE195: 0.5785691561 | AF195: 0.7369607122 | AG195: -0.1253933152 | AH195: 2.239473584
F196: 164 | G196: =IF($F196="","",IF(H195=$G$12-G$32+1,IF(G195+1>$G$12-G$32,F196+1,G195+1),G195)) ->  | J196: 2 | K196: 8 | L196: 12 | M196: 8.134109654 | Q196: -1.241406152 | R196: 1.069220064 | S196: 0.3582581512 | T196: 5.860989486 | X196: 0.244634253 | Y196: 0.9034512511 | Z196: 0.5159118405 | AA196: 1.652158451 | AE196: 0.5785691561 | AF196: 0.7369607122 | AG196: 0.4905738472 | AH196: 0.6209617173
F197: 165 | G197: =IF($F197="","",IF(H196=$G$12-G$32+1,IF(G196+1>$G$12-G$32,F197+1,G196+1),G196)) ->  | J197: 2 | K197: 8 | L197: 13 | M197: 9.164572743 | Q197: -1.241406152 | R197: 1.069220064 | S197: -0.1749632832 | T197: 5.779981942 | X197: 0.244634253 | Y197: 0.9034512511 | Z197: 0.9809591333 | AA197: 1.95013395 | AE197: 0.5785691561 | AF197: 0.7369607122 | AG197: 1.141739133 | AH197: 1.434456851
F198: 166 | G198: =IF($F198="","",IF(H197=$G$12-G$32+1,IF(G197+1>$G$12-G$32,F198+1,G197+1),G197)) ->  | J198: 2 | K198: 8 | L198: 14 | M198: 8.441165228 | Q198: -1.241406152 | R198: 1.069220064 | S198: 0.8914795856 | T198: 6.168045059 | X198: 0.244634253 | Y198: 0.9034512511 | Z198: 0.6321736637 | AA198: 1.652158451 | AE198: 0.5785691561 | AF198: 0.7369607122 | AG198: 0.4905738472 | AH198: 0.6209617173
F199: 167 | G199: =IF($F199="","",IF(H198=$G$12-G$32+1,IF(G198+1>$G$12-G$32,F199+1,G198+1),G198)) ->  | J199: 2 | K199: 8 | L199: 15 | M199: 9.971925876 | Q199: -1.241406152 | R199: 1.069220064 | S199: 1.069220064 | T199: 6.312748219 | X199: 0.244634253 | Y199: 0.9034512511 | Z199: 0.244634253 | AA199: 1.799921512 | AE199: 0.5785691561 | AF199: 0.7369607122 | AG199: 0.01539917906 | AH199: 1.859256146
F200: 168 | G200: =IF($F200="","",IF(H199=$G$12-G$32+1,IF(G199+1>$G$12-G$32,F200+1,G199+1),G199)) ->  | J200: 2 | K200: 8 | L200: 16 | M200: 30.46685525 | Q200: -1.241406152 | R200: 1.069220064 | S200: -2.263413901 | T200: 8.454636868 | X200: 0.244634253 | Y200: 0.9034512511 | Z200: -3.407924693 | AA200: 11.27878463 | AE200: 0.5785691561 | AF200: 0.7369607122 | AG200: -3.240427251 | AH200: 10.73343375
F201: 169 | G201: =IF($F201="","",IF(H200=$G$12-G$32+1,IF(G200+1>$G$12-G$32,F201+1,G200+1),G200)) ->  | J201: 2 | K201: 9 | L201: 10 | M201: 11.65385713 | Q201: -1.241406152 | R201: 1.42470102 | S201: -0.8859251957 | T201: 7.008943976 | X201: 0.244634253 | Y201: -0.297920922 | Z201: 0.1283724298 | AA201: 1.39953442 | AE201: 0.5785691561 | AF201: -0.6709642305 | AG201: 0.349781353 | AH201: 3.24537873
F202: 170 | G202: =IF($F202="","",IF(H201=$G$12-G$32+1,IF(G201+1>$G$12-G$32,F202+1,G201+1),G201)) ->  | J202: 2 | K202: 9 | L202: 11 | M202: 11.22665075 | Q202: -1.241406152 | R202: 1.42470102 | S202: 0.5359986294 | T202: 6.738653148 | X202: 0.244634253 | Y202: -0.297920922 | Z202: 0.01211060658 | AA202: 1.359151384 | AE202: 0.5785691561 | AF202: -0.6709642305 | AG202: -0.1253933152 | AH202: 3.128846214
... 499 more rows

Sheet サマリー
B2: インジェクター組み合わせ性能評価結果
B7: 総合性能評価
C9: オープンフロー流量 | D9: =バラつき最小組み合わせ!G24 -> 235.6±0.5 | E9: [cc/min]
C10: 流量ばらつき | D10: =CONCATENATE("±",バラつき最小組み合わせ!G25) -> ±0.2 | E10: [%]
C11: 無効噴射期間 | D11: =バラつき最小組み合わせ!G26 -> 1041±39 | E11: [us]
C14: これらの算出方法はこちら
B22: 噴射条件Bの平均値を100%とした場合の相対噴射量
C24: 条件Aでの通電時間 | D24: =バラつき最小組み合わせ!C3 -> 5000 | E24: [us]
C25: 条件Bでの通電時間 | D25: =バラつき最小組み合わせ!C4 -> 10000 | E25: [us]
B43: 備考

Sheet History
A1: 2021-06-05 | B1: v1.03 | C1: サマリーシート追加
A2: 2021-05-28 | B2: v1.02 | C2: 英語コメント追加
A3: 2021-05-24 | B3: v1.01 | C3: 入力値が不適切な場合のエラー表示機能を追加
A4: 2021-05-22 | B4: v1.00 | C4: 公開用に機能制限・Web公開
